Workbook

Sheet Sheet1
B2: Arrear Calculator
B3: from January 01, 2021 to December 31, 2026 (Today)
B4: SN | C4: Employee Detail | F4: Arrear Detail | I4: Basic Pay | K4: PF Type | L4: ITax/TDS
C5: Name | D5: Desig. | E5: Office | F5: Type | G5: From | H5: To | I5: Due | J5: Drawn
B6: =IF(COUNTBLANK(C6:K6)>0,"",COUNTA($C$6:C6)) -> 1 | C6: Pramod Kumar Saini | D6: Teacher | E6: Govt Sr Sc Sch Malutana (Thanagazi) Alwar | F6: Salary | G6: 2021-01-01 | H6: 2025-01-18 | I6: 47900 | J6: 45100 | K6: GPF 2004 | L6: 10%
B7: =IF(COUNTBLANK(C7:K7)>0,"",COUNTA($C$6:C7)) -> 
B8: =IF(COUNTBLANK(C8:K8)>0,"",COUNTA($C$6:C8)) -> 
B9: =IF(COUNTBLANK(C9:K9)>0,"",COUNTA($C$6:C9)) -> 
B10: =IF(COUNTBLANK(C10:K10)>0,"",COUNTA($C$6:C10)) -> 
B11: =IF(COUNTBLANK(C11:K11)>0,"",COUNTA($C$6:C11)) -> 
B12: =IF(COUNTBLANK(C12:K12)>0,"",COUNTA($C$6:C12)) -> 
B13: =IF(COUNTBLANK(C13:K13)>0,"",COUNTA($C$6:C13)) -> 
B14: =IF(COUNTBLANK(C14:K14)>0,"",COUNTA($C$6:C14)) -> 
B15: =IF(COUNTBLANK(C15:K15)>0,"",COUNTA($C$6:C15)) -> 
B16: =IF(COUNTBLANK(C16:K16)>0,"",COUNTA($C$6:C16)) -> 
B17: =IF(COUNTBLANK(C17:K17)>0,"",COUNTA($C$6:C17)) -> 
B18: =IF(COUNTBLANK(C18:K18)>0,"",COUNTA($C$6:C18)) -> 
B19: =IF(COUNTBLANK(C19:K19)>0,"",COUNTA($C$6:C19)) -> 
B20: =IF(COUNTBLANK(C20:K20)>0,"",COUNTA($C$6:C20)) -> 

Sheet Sheet2
B1: =Sheet3!$B$3 -> 1 | C1: =IFERROR(VLOOKUP(B1,Sheet1!$B$6:$L$20,2,0),"") -> Pramod Kumar Saini
C2: =IFERROR(VLOOKUP(B1,Sheet1!$B$6:$L$20,3,0),"") -> Teacher
C3: ="Office "&IFERROR(VLOOKUP(B1,Sheet1!$B$6:$L$20,4,0),"") -> Office Govt Sr Sc Sch Malutana (Thanagazi) Alwar
C4: =VLOOKUP(B1,Sheet1!$B$6:$L$20,5,0)&" Arrear from "&TEXT(VLOOKUP(B1,Sheet1!$B$6:$L$20,6,0),"DD-MMM-YYYY")& " to "&TEXT(VLOOKUP(B1,Sheet1!$B$6:$L$20,7,0),"MMM-YYYY") -> Salary Arrear from 01-Jan-2021 to Jan-2025
K5: MY | L5: Due Basic | M5: Due DA | N5: Due HRA | P5: Drawn Basic | Q5: Due DA | R5: Due HRA | W5: Due GPF | AA5: Drawn GPF | AB5: Due RGHS | AC5: Drawn RGHS | AD5: =VLOOKUP($B$1,saini,11,0) -> 10% | AG5: Due DA | AH5: Drawn DA | AI5: Diff | AJ5: Due HRA | AK5: Drawn HRA
B6: =DAY(IFERROR(VLOOKUP($B$1,saini,6,0),"Error")) -> 1 | C6: =VLOOKUP(C9,F6:H77,3,0) -> 31 | D6: 1 | E6: 2021 | F6: =D6&"-"&E6 -> 1-2021 | G6: 1 | H6: 31 | I6: =IFERROR(IF($C$10<G6,"",IF($C$11<=G6,F6,"")),"") -> 1-2021 | K6: =I6 -> 1-2021 | L6: =IFERROR(IF(I6="",0,IF($C$11=$G$6,$B$12,0)),"") -> 47900 | M6: =ROUND(L6*AG6/100,0) -> 8143 | N6: =ROUND(L6*AJ6/100,0) -> 3832 | O6: =SUM(L6:N6) -> 59875 | P6: =IFERROR(IF(I6="",0,IF($C$11=$G$6,$C$12,0)),"") -> 45100 | Q6: =ROUND(P6*AH6/100,0) -> 7667 | R6: =ROUND(P6*AK6/100,0) -> 3608 | S6: =SUM(P6:R6) -> 56375 | T6: =IF(L6>51500,3575,IF(L6>38500,2850,IF(L6>28500,2100,IF(L6>23000,1625,IF(L6>0,1450,0))))) -> 2850 | U6: =IF(L6>167000,10500,IF(L6>116000,8900,IF(L6>80000,6150,IF(L6>72000,4800,IF(L6>62000,4200,T6))))) -> 2850 | V6: =ROUND(L6*AI6/100,0) -> 0 | W6: =U6+V6 -> 2850 | X6: =IF(P6>51500,3575,IF(P6>38500,2850,IF(P6>28500,2100,IF(P6>23000,1625,IF(P6>0,1450,0))))) -> 2850 | Y6: =IF(P6>167000,10500,IF(P6>116000,8900,IF(P6>80000,6150,IF(P6>72000,4800,IF(P6>62000,4200,X6))))) -> 2850 | Z6: =ROUND(P6*AI6/100,0) -> 0 | AA6: =Y6+Z6 -> 2850 | AB6: =IF(L6>54000,875,IF(L6>33500,658,IF(L6>18000,440,IF(L6>0,265,0)))) -> 658 | AC6: =IF(P6>54000,875,IF(P6>33500,658,IF(P6>18000,440,IF(P6>0,265,0)))) -> 658 | AD6: =ROUND((O6-S6)*$AD$5,0) -> 350 | AG6: 17 | AH6: 17 | AI6: =AG6-AH6 -> 0 | AJ6: 8 | AK6: 8
B7: =MONTH(IFERROR(VLOOKUP($B$1,saini,6,0),"Error")) -> 1 | C7: =MONTH(IFERROR(VLOOKUP($B$1,saini,7,0),"Error")) -> 1 | D7: 2 | E7: 2021 | F7: =D7&"-"&E7 -> 2-2021 | G7: 2 | H7: 28 | I7: 2-2021 | K7: 2-2021 | L7: =IFERROR(IF(I7="",0,IF(L6>0,$B$13,$B$12)),"") -> 47900 | M7: =ROUND(L7*AG7/100,0) -> 8143 | N7: =ROUND(L7*AJ7/100,0) -> 3832 | O7: =SUM(L7:N7) -> 59875 | P7: =IFERROR(IF(I7="",0,IF(P6>0,$C$13,$C$12)),"") -> 45100 | Q7: =ROUND(P7*AH7/100,0) -> 7667 | R7: =ROUND(P7*AK7/100,0) -> 3608 | S7: =SUM(P7:R7) -> 56375 | T7: 2850 | U7: 2850 | V7: =ROUND(L7*AI7/100,0) -> 0 | W7: =U7+V7 -> 2850 | X7: 2850 | Y7: 2850 | Z7: =ROUND(P7*AI7/100,0) -> 0 | AA7: =Y7+Z7 -> 2850 | AB7: 658 | AC7: 658 | AD7: =ROUND((O7-S7)*$AD$5,0) -> 350 | AG7: 17 | AH7: 17 | AI7: =AG7-AH7 -> 0 | AJ7: 8 | AK7: 8
B8: =YEAR(IFERROR(VLOOKUP($B$1,saini,6,0),"Error")) -> 2021 | C8: =YEAR(IFERROR(VLOOKUP($B$1,saini,7,0),"Error")) -> 2025 | D8: 3 | E8: 2021 | F8: 3-2021 | G8: 3 | H8: 31 | I8: 3-2021 | K8: 3-2021 | L8: =IFERROR(IF(I8="",0,IF(L7>0,$B$13,$B$12)),"") -> 47900 | M8: 8143 | N8: 3832 | O8: 59875 | P8: =IFERROR(IF(I8="",0,IF(P7>0,$C$13,$C$12)),"") -> 45100 | Q8: 7667 | R8: 3608 | S8: 56375 | T8: 2850 | U8: 2850 | V8: 0 | W8: 2850 | X8: 2850 | Y8: 2850 | Z8: 0 | AA8: 2850 | AB8: 658 | AC8: 658 | AD8: 350 | AG8: 17 | AH8: 17 | AI8: 0 | AJ8: 8 | AK8: 8
B9: =B7&"-"&B8 -> 1-2021 | C9: =C7&"-"&C8 -> 1-2025 | D9: 4 | E9: 2021 | F9: 4-2021 | G9: 4 | H9: 30 | I9: 4-2021 | K9: 4-2021 | L9: =IFERROR(IF(I9="",0,IF(L8>0,$B$13,$B$12)),"") -> 47900 | M9: 8143 | N9: 3832 | O9: 59875 | P9: =IFERROR(IF(I9="",0,IF(P8>0,$C$13,$C$12)),"") -> 45100 | Q9: 7667 | R9: 3608 | S9: 56375 | T9: 2850 | U9: 2850 | V9: 0 | W9: 2850 | X9: 2850 | Y9: 2850 | Z9: 0 | AA9: 2850 | AB9: 658 | AC9: 658 | AD9: 350 | AG9: 17 | AH9: 17 | AI9: 0 | AJ9: 8 | AK9: 8
B10: =VLOOKUP(B9,F6:H77,3,0)-B6+1 -> 31 | C10: =VLOOKUP(C9,F6:H77,2,0) -> 49 | D10: 5 | E10: 2021 | F10: 5-2021 | G10: 5 | H10: 31 | I10: 5-2021 | K10: 5-2021 | L10: =IFERROR(IF(I10="",0,IF(L9>0,$B$13,$B$12)),"") -> 47900 | M10: 8143 | N10: 3832 | O10: 59875 | P10: =IFERROR(IF(I10="",0,IF(P9>0,$C$13,$C$12)),"") -> 45100 | Q10: 7667 | R10: 3608 | S10: 56375 | T10: 2850 | U10: 2850 | V10: 0 | W10: 2850 | X10: 2850 | Y10: 2850 | Z10: 0 | AA10: 2850 | AB10: 658 | AC10: 658 | AD10: 350 | AG10: 17 | AH10: 17 | AI10: 0 | AJ10: 8 | AK10: 8
B11: =VLOOKUP(B9,F6:H77,3,0) -> 31 | C11: =VLOOKUP(B9,F6:H77,2,0) -> 1 | D11: 6 | E11: 2021 | F11: 6-2021 | G11: 6 | H11: 30 | I11: 6-2021 | K11: 6-2021 | L11: =IFERROR(IF(I11="",0,IF(L10>0,$B$13,$B$12)),"") -> 47900 | M11: 8143 | N11: 3832 | O11: 59875 | P11: =IFERROR(IF(I11="",0,IF(P10>0,$C$13,$C$12)),"") -> 45100 | Q11: 7667 | R11: 3608 | S11: 56375 | T11: 2850 | U11: 2850 | V11: 0 | W11: 2850 | X11: 2850 | Y11: 2850 | Z11: 0 | AA11: 2850 | AB11: 658 | AC11: 658 | AD11: 350 | AG11: 17 | AH11: 17 | AI11: 0 | AJ11: 8 | AK11: 8
B12: =ROUND((B13/B11)*B10,0) -> 47900 | C12: =ROUND((C13/B11)*B10,0) -> 45100 | D12: 7 | E12: 2021 | F12: 7-2021 | G12: 7 | H12: 31 | I12: 7-2021 | K12: 7-2021 | L12: =IFERROR(IF(I12="",0,IF($C$11<7,$B$14,IF(L11>0,$B$13,$B$12))),"") -> 49300 | M12: 15283 | N12: 4437 | O12: 69020 | P12: =IFERROR(IF(I12="",0,IF($C$11<7,$C$14,IF(P11>0,$C$13,$C$12))),"") -> 46500 | Q12: 7905 | R12: 4185 | S12: 58590 | T12: 2850 | U12: 2850 | V12: 6902 | W12: 9752 | X12: 2850 | Y12: 2850 | Z12: 6510 | AA12: 9360 | AB12: 658 | AC12: 658 | AD12: 1043 | AG12: 31 | AH12: 17 | AI12: 14 | AJ12: 9 | AK12: 9
B13: =IFERROR(VLOOKUP($B$1,saini,8,0),"Error") -> 47900 | C13: =IFERROR(VLOOKUP($B$1,saini,9,0),"Error") -> 45100 | D13: 8 | E13: 2021 | F13: 8-2021 | G13: 8 | H13: 31 | I13: 8-2021 | K13: 8-2021 | L13: 49300 | M13: 15283 | N13: 4437 | O13: 69020 | P13: 46500 | Q13: 7905 | R13: 4185 | S13: 58590 | T13: 2850 | U13: 2850 | V13: 6902 | W13: 9752 | X13: 2850 | Y13: 2850 | Z13: 6510 | AA13: 9360 | AB13: 658 | AC13: 658 | AD13: 1043 | AG13: 31 | AH13: 17 | AI13: 14 | AJ13: 9 | AK13: 9
B14: =MROUND(B13*103%,100) -> 49300 | C14: 46500 | D14: 9 | E14: 2021 | F14: 9-2021 | G14: 9 | H14: 30 | I14: 9-2021 | K14: 9-2021 | L14: 49300 | M14: 15283 | N14: 4437 | O14: 69020 | P14: 46500 | Q14: 7905 | R14: 4185 | S14: 58590 | T14: 2850 | U14: 2850 | V14: 6902 | W14: 9752 | X14: 2850 | Y14: 2850 | Z14: 6510 | AA14: 9360 | AB14: 658 | AC14: 658 | AD14: 1043 | AG14: 31 | AH14: 17 | AI14: 14 | AJ14: 9 | AK14: 9
B15: 50800 | C15: 47900 | D15: 10 | E15: 2021 | F15: 10-2021 | G15: 10 | H15: 31 | I15: 10-2021 | K15: 10-2021 | L15: 49300 | M15: 15283 | N15: 4437 | O15: 69020 | P15: 46500 | Q15: 14415 | R15: 4185 | S15: 65100 | T15: 2850 | U15: 2850 | V15: 0 | W15: 2850 | X15: 2850 | Y15: 2850 | Z15: 0 | AA15: 2850 | AB15: 658 | AC15: 658 | AD15: 392 | AG15: 31 | AH15: 31 | AI15: 0 | AJ15: 9 | AK15: 9
B16: 52300 | C16: 49300 | D16: 11 | E16: 2021 | F16: 11-2021 | G16: 11 | H16: 30 | I16: 11-2021 | K16: 11-2021 | L16: 49300 | M16: 15283 | N16: 4437 | O16: 69020 | P16: 46500 | Q16: 14415 | R16: 4185 | S16: 65100 | T16: 2850 | U16: 2850 | V16: 0 | W16: 2850 | X16: 2850 | Y16: 2850 | Z16: 0 | AA16: 2850 | AB16: 658 | AC16: 658 | AD16: 392 | AG16: 31 | AH16: 31 | AI16: 0 | AJ16: 9 | AK16: 9
B17: 53900 | C17: 50800 | D17: 12 | E17: 2021 | F17: 12-2021 | G17: 12 | H17: 31 | I17: 12-2021 | K17: 12-2021 | L17: 49300 | M17: 15283 | N17: 4437 | O17: 69020 | P17: 46500 | Q17: 14415 | R17: 4185 | S17: 65100 | T17: 2850 | U17: 2850 | V17: 0 | W17: 2850 | X17: 2850 | Y17: 2850 | Z17: 0 | AA17: 2850 | AB17: 658 | AC17: 658 | AD17: 392 | AG17: 31 | AH17: 31 | AI17: 0 | AJ17: 9 | AK17: 9
B18: 55500 | C18: 52300 | D18: 1 | E18: 2022 | F18: 1-2022 | G18: 13 | H18: 31 | I18: 1-2022 | K18: 1-2022 | L18: 49300 | M18: 16762 | N18: 4437 | O18: 70499 | P18: 46500 | Q18: 14415 | R18: 4185 | S18: 65100 | T18: 2850 | U18: 2850 | V18: 1479 | W18: 4329 | X18: 2850 | Y18: 2850 | Z18: 1395 | AA18: 4245 | AB18: 658 | AC18: 658 | AD18: 540 | AG18: 34 | AH18: 31 | AI18: 3 | AJ18: 9 | AK18: 9
B19: 57200 | C19: 53900 | D19: 2 | E19: 2022 | F19: 2-2022 | G19: 14 | H19: 28 | I19: 2-2022 | K19: 2-2022 | L19: 49300 | M19: 16762 | N19: 4437 | O19: 70499 | P19: 46500 | Q19: 14415 | R19: 4185 | S19: 65100 | T19: 2850 | U19: 2850 | V19: 1479 | W19: 4329 | X19: 2850 | Y19: 2850 | Z19: 1395 | AA19: 4245 | AB19: 658 | AC19: 658 | AD19: 540 | AG19: 34 | AH19: 31 | AI19: 3 | AJ19: 9 | AK19: 9
D20: 3 | E20: 2022 | F20: 3-2022 | G20: 15 | H20: 31 | I20: 3-2022 | K20: 3-2022 | L20: 49300 | M20: 16762 | N20: 4437 | O20: 70499 | P20: 46500 | Q20: 14415 | R20: 4185 | S20: 65100 | T20: 2850 | U20: 2850 | V20: 1479 | W20: 4329 | X20: 2850 | Y20: 2850 | Z20: 1395 | AA20: 4245 | AB20: 658 | AC20: 658 | AD20: 540 | AG20: 34 | AH20: 31 | AI20: 3 | AJ20: 9 | AK20: 9
D21: 4 | E21: 2022 | F21: 4-2022 | G21: 16 | H21: 30 | I21: 4-2022 | K21: 4-2022 | L21: 49300 | M21: 16762 | N21: 4437 | O21: 70499 | P21: 46500 | Q21: 15810 | R21: 4185 | S21: 66495 | T21: 2850 | U21: 2850 | V21: 0 | W21: 2850 | X21: 2850 | Y21: 2850 | Z21: 0 | AA21: 2850 | AB21: 658 | AC21: 658 | AD21: 400 | AG21: 34 | AH21: 34 | AI21: 0 | AJ21: 9 | AK21: 9
D22: 5 | E22: 2022 | F22: 5-2022 | G22: 17 | H22: 31 | I22: 5-2022 | K22: 5-2022 | L22: 49300 | M22: 16762 | N22: 4437 | O22: 70499 | P22: 46500 | Q22: 15810 | R22: 4185 | S22: 66495 | T22: 2850 | U22: 2850 | V22: 0 | W22: 2850 | X22: 2850 | Y22: 2850 | Z22: 0 | AA22: 2850 | AB22: 658 | AC22: 658 | AD22: 400 | AG22: 34 | AH22: 34 | AI22: 0 | AJ22: 9 | AK22: 9
D23: 6 | E23: 2022 | F23: 6-2022 | G23: 18 | H23: 30 | I23: 6-2022 | K23: 6-2022 | L23: 49300 | M23: 16762 | N23: 4437 | O23: 70499 | P23: 46500 | Q23: 15810 | R23: 4185 | S23: 66495 | T23: 2850 | U23: 2850 | V23: 0 | W23: 2850 | X23: 2850 | Y23: 2850 | Z23: 0 | AA23: 2850 | AB23: 658 | AC23: 658 | AD23: 400 | AG23: 34 | AH23: 34 | AI23: 0 | AJ23: 9 | AK23: 9
D24: 7 | E24: 2022 | F24: 7-2022 | G24: 19 | H24: 31 | I24: 7-2022 | K24: 7-2022 | L24: =IFERROR(IF(I24="",0,IF($C$11<7,$B$15,IF(AND($C$11>6,$C$11<19),$B$14,IF($C$11=$G$24,$B$12)))),"") -> 50800 | M24: 19304 | N24: 4572 | O24: 74676 | P24: =IFERROR(IF(I24="",0,IF($C$11<7,$C$15,IF(AND($C$11>6,$C$11<19),$C$14,IF($C$11=$G$24,$C$12)))),"") -> 47900 | Q24: 16286 | R24: 4311 | S24: 68497 | T24: 2850 | U24: 2850 | V24: 2032 | W24: 4882 | X24: 2850 | Y24: 2850 | Z24: 1916 | AA24: 4766 | AB24: 658 | AC24: 658 | AD24: 618 | AG24: 38 | AH24: 34 | AI24: 4 | AJ24: 9 | AK24: 9
D25: 8 | E25: 2022 | F25: 8-2022 | G25: 20 | H25: 31 | I25: 8-2022 | K25: 8-2022 | L25: =IFERROR(IF(I25="",0,IF($C$11<7,$B$15,IF(AND($C$11>6,$C$11<19),$B$14,IF(L24>0,$B$13,$B$12)))),"") -> 50800 | M25: 19304 | N25: 4572 | O25: 74676 | P25: =IFERROR(IF(I25="",0,IF($C$11<7,$C$15,IF(AND($C$11>6,$C$11<19),$C$14,IF(P24>0,$C$13,$C$12)))),"") -> 47900 | Q25: 16286 | R25: 4311 | S25: 68497 | T25: 2850 | U25: 2850 | V25: 2032 | W25: 4882 | X25: 2850 | Y25: 2850 | Z25: 1916 | AA25: 4766 | AB25: 658 | AC25: 658 | AD25: 618 | AG25: 38 | AH25: 34 | AI25: 4 | AJ25: 9 | AK25: 9
D26: 9 | E26: 2022 | F26: 9-2022 | G26: 21 | H26: 30 | I26: 9-2022 | K26: 9-2022 | L26: 50800 | M26: 19304 | N26: 4572 | O26: 74676 | P26: 47900 | Q26: 16286 | R26: 4311 | S26: 68497 | T26: 2850 | U26: 2850 | V26: 2032 | W26: 4882 | X26: 2850 | Y26: 2850 | Z26: 1916 | AA26: 4766 | AB26: 658 | AC26: 658 | AD26: 618 | AG26: 38 | AH26: 34 | AI26: 4 | AJ26: 9 | AK26: 9
D27: 10 | E27: 2022 | F27: 10-2022 | G27: 22 | H27: 31 | I27: 10-2022 | K27: 10-2022 | L27: 50800 | M27: 19304 | N27: 4572 | O27: 74676 | P27: 47900 | Q27: 18202 | R27: 4311 | S27: 70413 | T27: 2850 | U27: 2850 | V27: 0 | W27: 2850 | X27: 2850 | Y27: 2850 | Z27: 0 | AA27: 2850 | AB27: 658 | AC27: 658 | AD27: 426 | AG27: 38 | AH27: 38 | AI27: 0 | AJ27: 9 | AK27: 9
D28: 11 | E28: 2022 | F28: 11-2022 | G28: 23 | H28: 30 | I28: 11-2022 | K28: 11-2022 | L28: 50800 | M28: 19304 | N28: 4572 | O28: 74676 | P28: 47900 | Q28: 18202 | R28: 4311 | S28: 70413 | T28: 2850 | U28: 2850 | V28: 0 | W28: 2850 | X28: 2850 | Y28: 2850 | Z28: 0 | AA28: 2850 | AB28: 658 | AC28: 658 | AD28: 426 | AG28: 38 | AH28: 38 | AI28: 0 | AJ28: 9 | AK28: 9
D29: 12 | E29: 2022 | F29: 12-2022 | G29: 24 | H29: 31 | I29: 12-2022 | K29: 12-2022 | L29: 50800 | M29: 19304 | N29: 4572 | O29: 74676 | P29: 47900 | Q29: 18202 | R29: 4311 | S29: 70413 | T29: 2850 | U29: 2850 | V29: 0 | W29: 2850 | X29: 2850 | Y29: 2850 | Z29: 0 | AA29: 2850 | AB29: 658 | AC29: 658 | AD29: 426 | AG29: 38 | AH29: 38 | AI29: 0 | AJ29: 9 | AK29: 9
D30: 1 | E30: 2023 | F30: 1-2023 | G30: 25 | H30: 31 | I30: 1-2023 | K30: 1-2023 | L30: 50800 | M30: 21336 | N30: 4572 | O30: 76708 | P30: 47900 | Q30: 18202 | R30: 4311 | S30: 70413 | T30: 2850 | U30: 2850 | V30: 2032 | W30: 4882 | X30: 2850 | Y30: 2850 | Z30: 1916 | AA30: 4766 | AB30: 658 | AC30: 658 | AD30: 630 | AG30: 42 | AH30: 38 | AI30: 4 | AJ30: 9 | AK30: 9
D31: 2 | E31: 2023 | F31: 2-2023 | G31: 26 | H31: 28 | I31: 2-2023 | K31: 2-2023 | L31: 50800 | M31: 21336 | N31: 4572 | O31: 76708 | P31: 47900 | Q31: 18202 | R31: 4311 | S31: 70413 | T31: 2850 | U31: 2850 | V31: 2032 | W31: 4882 | X31: 2850 | Y31: 2850 | Z31: 1916 | AA31: 4766 | AB31: 658 | AC31: 658 | AD31: 630 | AG31: 42 | AH31: 38 | AI31: 4 | AJ31: 9 | AK31: 9
D32: 3 | E32: 2023 | F32: 3-2023 | G32: 27 | H32: 31 | I32: 3-2023 | K32: 3-2023 | L32: 50800 | M32: 21336 | N32: 4572 | O32: 76708 | P32: 47900 | Q32: 18202 | R32: 4311 | S32: 70413 | T32: 2850 | U32: 2850 | V32: 2032 | W32: 4882 | X32: 2850 | Y32: 2850 | Z32: 1916 | AA32: 4766 | AB32: 658 | AC32: 658 | AD32: 630 | AG32: 42 | AH32: 38 | AI32: 4 | AJ32: 9 | AK32: 9
D33: 4 | E33: 2023 | F33: 4-2023 | G33: 28 | H33: 30 | I33: 4-2023 | K33: 4-2023 | L33: 50800 | M33: 21336 | N33: 4572 | O33: 76708 | P33: 47900 | Q33: 20118 | R33: 4311 | S33: 72329 | T33: 2850 | U33: 2850 | V33: 0 | W33: 2850 | X33: 2850 | Y33: 2850 | Z33: 0 | AA33: 2850 | AB33: 658 | AC33: 658 | AD33: 438 | AG33: 42 | AH33: 42 | AI33: 0 | AJ33: 9 | AK33: 9
D34: 5 | E34: 2023 | F34: 5-2023 | G34: 29 | H34: 31 | I34: 5-2023 | K34: 5-2023 | L34: 50800 | M34: 21336 | N34: 4572 | O34: 76708 | P34: 47900 | Q34: 20118 | R34: 4311 | S34: 72329 | T34: 2850 | U34: 2850 | V34: 0 | W34: 2850 | X34: 2850 | Y34: 2850 | Z34: 0 | AA34: 2850 | AB34: 658 | AC34: 658 | AD34: 438 | AG34: 42 | AH34: 42 | AI34: 0 | AJ34: 9 | AK34: 9
D35: 6 | E35: 2023 | F35: 6-2023 | G35: 30 | H35: 30 | I35: 6-2023 | K35: 6-2023 | L35: 50800 | M35: 21336 | N35: 4572 | O35: 76708 | P35: 47900 | Q35: 20118 | R35: 4311 | S35: 72329 | T35: 2850 | U35: 2850 | V35: 0 | W35: 2850 | X35: 2850 | Y35: 2850 | Z35: 0 | AA35: 2850 | AB35: 658 | AC35: 658 | AD35: 438 | AG35: 42 | AH35: 42 | AI35: 0 | AJ35: 9 | AK35: 9
D36: 7 | E36: 2023 | F36: 7-2023 | G36: 31 | H36: 31 | I36: 7-2023 | K36: 7-2023 | L36: =IFERROR(IF(I36="",0,IF($C$11<7,$B$16,IF(AND($C$11>6,$C$11<19),$B$15,IF(AND($C$11>18,$C$11<31),$B$14,IF($C$11=$G$36,$B$12))))),"") -> 52300 | M36: 24058 | N36: 4707 | O36: 81065 | P36: =IFERROR(IF(I36="",0,IF($C$11<7,$C$16,IF(AND($C$11>6,$C$11<19),$C$15,IF(AND($C$11>18,$C$11<31),$C$14,IF($C$11=$G$36,$C$12))))),"") -> 49300 | Q36: 22678 | R36: 4437 | S36: 76415 | T36: 3575 | U36: 3575 | V36: 0 | W36: 3575 | X36: 2850 | Y36: 2850 | Z36: 0 | AA36: 2850 | AB36: 658 | AC36: 658 | AD36: 465 | AG36: 46 | AH36: 46 | AI36: 0 | AJ36: 9 | AK36: 9
D37: 8 | E37: 2023 | F37: 8-2023 | G37: 32 | H37: 31 | I37: 8-2023 | K37: 8-2023 | L37: =IFERROR(IF(I37="",0,IF($C$11<7,$B$16,IF(AND($C$11>6,$C$11<19),$B$15,IF(AND($C$11>18,$C$11<31),$B$14,IF(L36>0,$B$13,$B$12))))),"") -> 52300 | M37: 24058 | N37: 4707 | O37: 81065 | P37: =IFERROR(IF(I37="",0,IF($C$11<7,$C$16,IF(AND($C$11>6,$C$11<19),$C$15,IF(AND($C$11>18,$C$11<31),$C$14,IF(P36>0,$C$13,$C$12))))),"") -> 49300 | Q37: 22678 | R37: 4437 | S37: 76415 | T37: 3575 | U37: 3575 | V37: 0 | W37: 3575 | X37: 2850 | Y37: 2850 | Z37: 0 | AA37: 2850 | AB37: 658 | AC37: 658 | AD37: 465 | AG37: 46 | AH37: 46 | AI37: 0 | AJ37: 9 | AK37: 9
D38: 9 | E38: 2023 | F38: 9-2023 | G38: 33 | H38: 30 | I38: =IFERROR(IF($C$10<G38,"",IF($C$11<=G38,F38,"")),"") -> 9-2023 | K38: =I38 -> 9-2023 | L38: 52300 | M38: 24058 | N38: 4707 | O38: 81065 | P38: 49300 | Q38: 22678 | R38: 4437 | S38: 76415 | T38: =IF(L38>51500,3575,IF(L38>38500,2850,IF(L38>28500,2100,IF(L38>23000,1625,IF(L38>0,1450,0))))) -> 3575 | U38: =IF(L38>167000,10500,IF(L38>116000,8900,IF(L38>80000,6150,IF(L38>72000,4800,IF(L38>62000,4200,T38))))) -> 3575 | V38: 0 | W38: 3575 | X38: =IF(P38>51500,3575,IF(P38>38500,2850,IF(P38>28500,2100,IF(P38>23000,1625,IF(P38>0,1450,0))))) -> 2850 | Y38: =IF(P38>167000,10500,IF(P38>116000,8900,IF(P38>80000,6150,IF(P38>72000,4800,IF(P38>62000,4200,X38))))) -> 2850 | Z38: 0 | AA38: 2850 | AB38: =IF(L38>54000,875,IF(L38>33500,658,IF(L38>18000,440,IF(L38>0,265,0)))) -> 658 | AC38: =IF(P38>54000,875,IF(P38>33500,658,IF(P38>18000,440,IF(P38>0,265,0)))) -> 658 | AD38: 465 | AG38: 46 | AH38: 46 | AI38: 0 | AJ38: 9 | AK38: 9
D39: 10 | E39: 2023 | F39: 10-2023 | G39: 34 | H39: 31 | I39: 10-2023 | K39: 10-2023 | L39: 52300 | M39: 24058 | N39: 4707 | O39: 81065 | P39: 49300 | Q39: 22678 | R39: 4437 | S39: 76415 | T39: 3575 | U39: 3575 | V39: 0 | W39: 3575 | X39: 2850 | Y39: 2850 | Z39: 0 | AA39: 2850 | AB39: 658 | AC39: 658 | AD39: 465 | AG39: 46 | AH39: 46 | AI39: 0 | AJ39: 9 | AK39: 9
D40: 11 | E40: 2023 | F40: 11-2023 | G40: 35 | H40: 30 | I40: 11-2023 | K40: 11-2023 | L40: 52300 | M40: 24058 | N40: 4707 | O40: 81065 | P40: 49300 | Q40: 22678 | R40: 4437 | S40: 76415 | T40: 3575 | U40: 3575 | V40: 0 | W40: 3575 | X40: 2850 | Y40: 2850 | Z40: 0 | AA40: 2850 | AB40: 658 | AC40: 658 | AD40: 465 | AG40: 46 | AH40: 46 | AI40: 0 | AJ40: 9 | AK40: 9
D41: 12 | E41: 2023 | F41: 12-2023 | G41: 36 | H41: 31 | I41: 12-2023 | K41: 12-2023 | L41: 52300 | M41: 24058 | N41: 4707 | O41: 81065 | P41: 49300 | Q41: 22678 | R41: 4437 | S41: 76415 | T41: 3575 | U41: 3575 | V41: 0 | W41: 3575 | X41: 2850 | Y41: 2850 | Z41: 0 | AA41: 2850 | AB41: 658 | AC41: 658 | AD41: 465 | AG41: 46 | AH41: 46 | AI41: 0 | AJ41: 9 | AK41: 9
D42: 1 | E42: 2024 | F42: 1-2024 | G42: 37 | H42: 31 | I42: 1-2024 | K42: 1-2024 | L42: 52300 | M42: 26150 | N42: 4707 | O42: 83157 | P42: 49300 | Q42: 24650 | R42: 4437 | S42: 78387 | T42: 3575 | U42: 3575 | V42: 0 | W42: 3575 | X42: 2850 | Y42: 2850 | Z42: 0 | AA42: 2850 | AB42: 658 | AC42: 658 | AD42: 477 | AG42: 50 | AH42: 50 | AI42: 0 | AJ42: 9 | AK42: 9
D43: 2 | E43: 2024 | F43: 2-2024 | G43: 38 | H43: 29 | I43: 2-2024 | K43: 2-2024 | L43: 52300 | M43: 26150 | N43: 4707 | O43: 83157 | P43: 49300 | Q43: 24650 | R43: 4437 | S43: 78387 | T43: 3575 | U43: 3575 | V43: 0 | W43: 3575 | X43: 2850 | Y43: 2850 | Z43: 0 | AA43: 2850 | AB43: 658 | AC43: 658 | AD43: 477 | AG43: 50 | AH43: 50 | AI43: 0 | AJ43: 9 | AK43: 9
D44: 3 | E44: 2024 | F44: 3-2024 | G44: 39 | H44: 31 | I44: 3-2024 | K44: 3-2024 | L44: 52300 | M44: 26150 | N44: 4707 | O44: 83157 | P44: 49300 | Q44: 24650 | R44: 4437 | S44: 78387 | T44: 3575 | U44: 3575 | V44: 0 | W44: 3575 | X44: 2850 | Y44: 2850 | Z44: 0 | AA44: 2850 | AB44: 658 | AC44: 658 | AD44: 477 | AG44: 50 | AH44: 50 | AI44: 0 | AJ44: 9 | AK44: 9
D45: 4 | E45: 2024 | F45: 4-2024 | G45: 40 | H45: 30 | I45: 4-2024 | K45: 4-2024 | L45: 52300 | M45: 26150 | N45: 4707 | O45: 83157 | P45: 49300 | Q45: 24650 | R45: 4437 | S45: 78387 | T45: 3575 | U45: 3575 | V45: 0 | W45: 3575 | X45: 2850 | Y45: 2850 | Z45: 0 | AA45: 2850 | AB45: 658 | AC45: 658 | AD45: 477 | AG45: 50 | AH45: 50 | AI45: 0 | AJ45: 9 | AK45: 9
D46: 5 | E46: 2024 | F46: 5-2024 | G46: 41 | H46: 31 | I46: 5-2024 | K46: 5-2024 | L46: 52300 | M46: 26150 | N46: 4707 | O46: 83157 | P46: 49300 | Q46: 24650 | R46: 4437 | S46: 78387 | T46: 3575 | U46: 3575 | V46: 0 | W46: 3575 | X46: 2850 | Y46: 2850 | Z46: 0 | AA46: 2850 | AB46: 658 | AC46: 658 | AD46: 477 | AG46: 50 | AH46: 50 | AI46: 0 | AJ46: 9 | AK46: 9
D47: 6 | E47: 2024 | F47: 6-2024 | G47: 42 | H47: 30 | I47: 6-2024 | K47: 6-2024 | L47: 52300 | M47: 26150 | N47: 4707 | O47: 83157 | P47: 49300 | Q47: 24650 | R47: 4437 | S47: 78387 | T47: 3575 | U47: 3575 | V47: 0 | W47: 3575 | X47: 2850 | Y47: 2850 | Z47: 0 | AA47: 2850 | AB47: 658 | AC47: 658 | AD47: 477 | AG47: 50 | AH47: 50 | AI47: 0 | AJ47: 9 | AK47: 9
D48: 7 | E48: 2024 | F48: 7-2024 | G48: 43 | H48: 31 | I48: 7-2024 | K48: 7-2024 | L48: =IFERROR(IF(I48="",0,IF($C$11<7,$B$17,IF(AND($C$11>6,$C$11<19),$B$16,IF(AND($C$11>18,$C$11<31),$B$15,IF(AND($C$11>30,$C$11<43),$B$14,IF($C$11=$G$48,$B$12)))))),"") -> 53900 | M48: 28567 | N48: 4851 | O48: 87318 | P48: =IFERROR(IF(I48="",0,IF($C$11<7,$C$17,IF(AND($C$11>6,$C$11<19),$C$16,IF(AND($C$11>18,$C$11<31),$C$15,IF(AND($C$11>30,$C$11<43),$C$14,IF($C$11=$G$48,$C$12)))))),"") -> 50800 | Q48: 26924 | R48: 4572 | S48: 82296 | T48: 3575 | U48: 3575 | V48: 0 | W48: 3575 | X48: 2850 | Y48: 2850 | Z48: 0 | AA48: 2850 | AB48: 658 | AC48: 658 | AD48: 502 | AG48: 53 | AH48: 53 | AI48: 0 | AJ48: 9 | AK48: 9
D49: 8 | E49: 2024 | F49: 8-2024 | G49: 44 | H49: 31 | I49: 8-2024 | K49: 8-2024 | L49: =IFERROR(IF(I49="",0,IF($C$11<7,$B$17,IF(AND($C$11>6,$C$11<19),$B$16,IF(AND($C$11>18,$C$11<31),$B$15,IF(AND($C$11>30,$C$11<43),$B$14,IF(L48>0,$B$13,$B$12)))))),"") -> 53900 | M49: 28567 | N49: 4851 | O49: 87318 | P49: =IFERROR(IF(I49="",0,IF($C$11<7,$C$17,IF(AND($C$11>6,$C$11<19),$C$16,IF(AND($C$11>18,$C$11<31),$C$15,IF(AND($C$11>30,$C$11<43),$C$14,IF(P48>0,$C$13,$C$12)))))),"") -> 50800 | Q49: 26924 | R49: 4572 | S49: 82296 | T49: 3575 | U49: 3575 | V49: 0 | W49: 3575 | X49: 2850 | Y49: 2850 | Z49: 0 | AA49: 2850 | AB49: 658 | AC49: 658 | AD49: 502 | AG49: 53 | AH49: 53 | AI49: 0 | AJ49: 9 | AK49: 9
D50: 9 | E50: 2024 | F50: 9-2024 | G50: 45 | H50: 30 | I50: 9-2024 | K50: 9-2024 | L50: 53900 | M50: 28567 | N50: 4851 | O50: 87318 | P50: 50800 | Q50: 25400 | R50: 4572 | S50: 80772 | T50: 3575 | U50: 3575 | V50: 1617 | W50: 5192 | X50: 2850 | Y50: 2850 | Z50: 1524 | AA50: 4374 | AB50: 658 | AC50: 658 | AD50: 655 | AG50: 53 | AH50: 50 | AI50: 3 | AJ50: 9 | AK50: 9
D51: 10 | E51: 2024 | F51: 10-2024 | G51: 46 | H51: 31 | I51: 10-2024 | K51: 10-2024 | L51: 53900 | M51: 0 | N51: 0 | O51: 53900 | P51: 50800 | Q51: 0 | R51: 0 | S51: 50800 | T51: 3575 | U51: 3575 | V51: 0 | W51: 3575 | X51: 2850 | Y51: 2850 | Z51: 0 | AA51: 2850 | AB51: 658 | AC51: 658 | AD51: 310
D52: 11 | E52: 2024 | F52: 11-2024 | G52: 47 | H52: 30 | I52: 11-2024 | K52: 11-2024 | L52: 53900 | M52: 0 | N52: 0 | O52: 53900 | P52: 50800 | Q52: 0 | R52: 0 | S52: 50800 | T52: 3575 | U52: 3575 | V52: 0 | W52: 3575 | X52: 2850 | Y52: 2850 | Z52: 0 | AA52: 2850 | AB52: 658 | AC52: 658 | AD52: 310
D53: 12 | E53: 2024 | F53: 12-2024 | G53: 48 | H53: 31 | I53: 12-2024 | K53: 12-2024 | L53: 53900 | M53: 0 | N53: 0 | O53: 53900 | P53: 50800 | Q53: 0 | R53: 0 | S53: 50800 | T53: 3575 | U53: 3575 | V53: 0 | W53: 3575 | X53: 2850 | Y53: 2850 | Z53: 0 | AA53: 2850 | AB53: 658 | AC53: 658 | AD53: 310
D54: 1 | E54: 2025 | F54: 1-2025 | G54: 49 | H54: 31 | I54: 1-2025 | K54: 1-2025 | L54: 53900 | M54: 0 | N54: 0 | O54: 53900 | P54: 50800 | Q54: 0 | R54: 0 | S54: 50800 | T54: 3575 | U54: 3575 | V54: 0 | W54: 3575 | X54: 2850 | Y54: 2850 | Z54: 0 | AA54: 2850 | AB54: 658 | AC54: 658 | AD54: 310
D55: 2 | E55: 2025 | F55: 2-2025 | G55: 50 | H55: 28 | L55: 0 | M55: 0 | N55: 0 | O55: 0 | P55: 0 | Q55: 0 | R55: 0 | S55: 0 | T55: 0 | U55: 0 | V55: 0 | W55: 0 | X55: 0 | Y55: 0 | Z55: 0 | AA55: 0 | AB55: 0 | AC55: 0 | AD55: 0
D56: 3 | E56: 2025 | F56: 3-2025 | G56: 51 | H56: 31 | L56: 0 | M56: 0 | N56: 0 | O56: 0 | P56: 0 | Q56: 0 | R56: 0 | S56: 0 | T56: 0 | U56: 0 | V56: 0 | W56: 0 | X56: 0 | Y56: 0 | Z56: 0 | AA56: 0 | AB56: 0 | AC56: 0 | AD56: 0
D57: 4 | E57: 2025 | F57: 4-2025 | G57: 52 | H57: 30 | L57: 0 | M57: 0 | N57: 0 | O57: 0 | P57: 0 | Q57: 0 | R57: 0 | S57: 0 | T57: 0 | U57: 0 | V57: 0 | W57: 0 | X57: 0 | Y57: 0 | Z57: 0 | AA57: 0 | AB57: 0 | AC57: 0 | AD57: 0
D58: 5 | E58: 2025 | F58: 5-2025 | G58: 53 | H58: 31 | L58: 0 | M58: 0 | N58: 0 | O58: 0 | P58: 0 | Q58: 0 | R58: 0 | S58: 0 | T58: 0 | U58: 0 | V58: 0 | W58: 0 | X58: 0 | Y58: 0 | Z58: 0 | AA58: 0 | AB58: 0 | AC58: 0 | AD58: 0
D59: 6 | E59: 2025 | F59: 6-2025 | G59: 54 | H59: 30 | L59: 0 | M59: 0 | N59: 0 | O59: 0 | P59: 0 | Q59: 0 | R59: 0 | S59: 0 | T59: 0 | U59: 0 | V59: 0 | W59: 0 | X59: 0 | Y59: 0 | Z59: 0 | AA59: 0 | AB59: 0 | AC59: 0 | AD59: 0
D60: 7 | E60: 2025 | F60: 7-2025 | G60: 55 | H60: 31 | L60: =IFERROR(IF(I60="",0,IF($C$11<7,$B$18,IF(AND($C$11>6,$C$11<19),$B$17,IF(AND($C$11>18,$C$11<31),$B$16,IF(AND($C$11>30,$C$11<43),$B$15,IF(AND($C$11>42,$C$11<55),$B$14,IF($C$11=$G$60,$B$12))))))),"") -> 0 | M60: 0 | N60: 0 | O60: 0 | P60: =IFERROR(IF(I60="",0,IF($C$11<7,$C$18,IF(AND($C$11>6,$C$11<19),$C$17,IF(AND($C$11>18,$C$11<31),$C$16,IF(AND($C$11>30,$C$11<43),$C$15,IF(AND($C$11>42,$C$11<55),$C$14,IF($C$11=$G$60,$C$12))))))),"") -> 0 | Q60: 0 | R60: 0 | S60: 0 | T60: 0 | U60: 0 | V60: 0 | W60: 0 | X60: 0 | Y60: 0 | Z60: 0 | AA60: 0 | AB60: 0 | AC60: 0 | AD60: 0
D61: 8 | E61: 2025 | F61: 8-2025 | G61: 56 | H61: 31 | L61: =IFERROR(IF(I61="",0,IF($C$11<7,$B$18,IF(AND($C$11>6,$C$11<19),$B$17,IF(AND($C$11>18,$C$11<31),$B$16,IF(AND($C$11>30,$C$11<43),$B$15,IF(AND($C$11>42,$C$11<55),$B$14,IF(L60>0,$B$13,$B$12))))))),"") -> 0 | M61: 0 | N61: 0 | O61: 0 | P61: =IFERROR(IF(I61="",0,IF($C$11<7,$C$18,IF(AND($C$11>6,$C$11<19),$C$17,IF(AND($C$11>18,$C$11<31),$C$16,IF(AND($C$11>30,$C$11<43),$C$15,IF(AND($C$11>42,$C$11<55),$C$14,IF(P60>0,$C$13,$C$12))))))),"") -> 0 | Q61: 0 | R61: 0 | S61: 0 | T61: 0 | U61: 0 | V61: 0 | W61: 0 | X61: 0 | Y61: 0 | Z61: 0 | AA61: 0 | AB61: 0 | AC61: 0 | AD61: 0
D62: 9 | E62: 2025 | F62: 9-2025 | G62: 57 | H62: 30 | L62: 0 | M62: 0 | N62: 0 | O62: 0 | P62: 0 | Q62: 0 | R62: 0 | S62: 0 | T62: 0 | U62: 0 | V62: 0 | W62: 0 | X62: 0 | Y62: 0 | Z62: 0 | AA62: 0 | AB62: 0 | AC62: 0 | AD62: 0
D63: 10 | E63: 2025 | F63: 10-2025 | G63: 58 | H63: 31 | L63: 0 | M63: 0 | N63: 0 | O63: 0 | P63: 0 | Q63: 0 | R63: 0 | S63: 0 | T63: 0 | U63: 0 | V63: 0 | W63: 0 | X63: 0 | Y63: 0 | Z63: 0 | AA63: 0 | AB63: 0 | AC63: 0 | AD63: 0
D64: 11 | E64: 2025 | F64: 11-2025 | G64: 59 | H64: 30 | L64: 0 | M64: 0 | N64: 0 | O64: 0 | P64: 0 | Q64: 0 | R64: 0 | S64: 0 | T64: 0 | U64: 0 | V64: 0 | W64: 0 | X64: 0 | Y64: 0 | Z64: 0 | AA64: 0 | AB64: 0 | AC64: 0 | AD64: 0
D65: 12 | E65: 2025 | F65: 12-2025 | G65: 60 | H65: 31 | L65: 0 | M65: 0 | N65: 0 | O65: 0 | P65: 0 | Q65: 0 | R65: 0 | S65: 0 | T65: 0 | U65: 0 | V65: 0 | W65: 0 | X65: 0 | Y65: 0 | Z65: 0 | AA65: 0 | AB65: 0 | AC65: 0 | AD65: 0
D66: 1 | E66: 2026 | F66: 1-2026 | G66: 61 | H66: 31 | L66: 0 | M66: 0 | N66: 0 | O66: 0 | P66: 0 | Q66: 0 | R66: 0 | S66: 0 | T66: 0 | U66: 0 | V66: 0 | W66: 0 | X66: 0 | Y66: 0 | Z66: 0 | AA66: 0 | AB66: 0 | AC66: 0 | AD66: 0
D67: 2 | E67: 2026 | F67: 2-2026 | G67: 62 | H67: 28 | L67: 0 | M67: 0 | N67: 0 | O67: 0 | P67: 0 | Q67: 0 | R67: 0 | S67: 0 | T67: 0 | U67: 0 | V67: 0 | W67: 0 | X67: 0 | Y67: 0 | Z67: 0 | AA67: 0 | AB67: 0 | AC67: 0 | AD67: 0
D68: 3 | E68: 2026 | F68: 3-2026 | G68: 63 | H68: 31 | L68: 0 | M68: 0 | N68: 0 | O68: 0 | P68: 0 | Q68: 0 | R68: 0 | S68: 0 | T68: 0 | U68: 0 | V68: 0 | W68: 0 | X68: 0 | Y68: 0 | Z68: 0 | AA68: 0 | AB68: 0 | AC68: 0 | AD68: 0
D69: 4 | E69: 2026 | F69: 4-2026 | G69: 64 | H69: 30 | L69: 0 | M69: 0 | N69: 0 | O69: 0 | P69: 0 | Q69: 0 | R69: 0 | S69: 0 | T69: 0 | U69: 0 | V69: 0 | W69: 0 | X69: 0 | Y69: 0 | Z69: 0 | AA69: 0 | AB69: 0 | AC69: 0 | AD69: 0
D70: 5 | E70: 2026 | F70: 5-2026 | G70: 65 | H70: 31 | I70: =IFERROR(IF($C$10<G70,"",IF($C$11<=G70,F70,"")),"") ->  | K70: =I70 ->  | L70: 0 | M70: 0 | N70: 0 | O70: 0 | P70: 0 | Q70: 0 | R70: 0 | S70: 0 | T70: =IF(L70>51500,3575,IF(L70>38500,2850,IF(L70>28500,2100,IF(L70>23000,1625,IF(L70>0,1450,0))))) -> 0 | U70: =IF(L70>167000,10500,IF(L70>116000,8900,IF(L70>80000,6150,IF(L70>72000,4800,IF(L70>62000,4200,T70))))) -> 0 | V70: 0 | W70: 0 | X70: =IF(P70>51500,3575,IF(P70>38500,2850,IF(P70>28500,2100,IF(P70>23000,1625,IF(P70>0,1450,0))))) -> 0 | Y70: =IF(P70>167000,10500,IF(P70>116000,8900,IF(P70>80000,6150,IF(P70>72000,4800,IF(P70>62000,4200,X70))))) -> 0 | Z70: 0 | AA70: 0 | AB70: =IF(L70>54000,875,IF(L70>33500,658,IF(L70>18000,440,IF(L70>0,265,0)))) -> 0 | AC70: =IF(P70>54000,875,IF(P70>33500,658,IF(P70>18000,440,IF(P70>0,265,0)))) -> 0 | AD70: 0
D71: 6 | E71: 2026 | F71: =D71&"-"&E71 -> 6-2026 | G71: 66 | H71: 30 | L71: 0 | M71: =ROUND(L71*AG71/100,0) -> 0 | N71: =ROUND(L71*AJ71/100,0) -> 0 | O71: =SUM(L71:N71) -> 0 | P71: 0 | Q71: =ROUND(P71*AH71/100,0) -> 0 | R71: =ROUND(P71*AK71/100,0) -> 0 | S71: =SUM(P71:R71) -> 0 | T71: 0 | U71: 0 | V71: =ROUND(L71*AI71/100,0) -> 0 | W71: =U71+V71 -> 0 | X71: 0 | Y71: 0 | Z71: =ROUND(P71*AI71/100,0) -> 0 | AA71: =Y71+Z71 -> 0 | AB71: 0 | AC71: 0 | AD71: =ROUND((O71-S71)*$AD$5,0) -> 0
D72: 7 | E72: 2026 | F72: 7-2026 | G72: 67 | H72: 31 | L72: =IFERROR(IF(I71="",0,IF($C$11<7,$B$19,IF(AND($C$11>6,$C$11<19),$B$18,IF(AND($C$11>18,$C$11<31),$B$17,IF(AND($C$11>30,$C$11<43),$B$16,IF(AND($C$11>42,$C$11<55),$B$15,IF(AND($C$11>54,$C$11<67),$B$14,IF(L70>0,$B$13,$B$12)))))))),"") -> 0 | M72: 0 | N72: 0 | O72: 0 | P72: =IFERROR(IF(I71="",0,IF($C$11<7,$C$19,IF(AND($C$11>6,$C$11<19),$C$18,IF(AND($C$11>18,$C$11<31),$C$17,IF(AND($C$11>30,$C$11<43),$C$16,IF(AND($C$11>42,$C$11<55),$C$15,IF(AND($C$11>54,$C$11<67),$C$14,IF(P70>0,$C$13,$C$12)))))))),"") -> 0 | Q72: 0 | R72: 0 | S72: 0 | T72: 0 | U72: 0 | V72: 0 | W72: 0 | X72: 0 | Y72: 0 | Z72: 0 | AA72: 0 | AB72: 0 | AC72: 0 | AD72: 0
D73: 8 | E73: 2026 | F73: 8-2026 | G73: 68 | H73: 31 | L73: 0 | M73: 0 | N73: 0 | O73: 0 | P73: 0 | Q73: 0 | R73: 0 | S73: 0 | T73: 0 | U73: 0 | V73: 0 | W73: 0 | X73: 0 | Y73: 0 | Z73: 0 | AA73: 0 | AB73: 0 | AC73: 0 | AD73: 0
D74: 9 | E74: 2026 | F74: 9-2026 | G74: 69 | H74: 30 | L74: 0 | M74: 0 | N74: 0 | O74: 0 | P74: 0 | Q74: 0 | R74: 0 | S74: 0 | T74: 0 | U74: 0 | V74: 0 | W74: 0 | X74: 0 | Y74: 0 | Z74: 0 | AA74: 0 | AB74: 0 | AC74: 0 | AD74: 0
D75: 10 | E75: 2026 | F75: 10-2026 | G75: 70 | H75: 31 | L75: 0 | M75: 0 | N75: 0 | O75: 0 | P75: 0 | Q75: 0 | R75: 0 | S75: 0 | T75: 0 | U75: 0 | V75: 0 | W75: 0 | X75: 0 | Y75: 0 | Z75: 0 | AA75: 0 | AB75: 0 | AC75: 0 | AD75: 0
D76: 11 | E76: 2026 | F76: 11-2026 | G76: 71 | H76: 30 | L76: 0 | M76: 0 | N76: 0 | O76: 0 | P76: 0 | Q76: 0 | R76: 0 | S76: 0 | T76: 0 | U76: 0 | V76: 0 | W76: 0 | X76: 0 | Y76: 0 | Z76: 0 | AA76: 0 | AB76: 0 | AC76: 0 | AD76: 0
D77: 12 | E77: 2026 | F77: 12-2026 | G77: 72 | H77: 31 | L77: 0 | M77: 0 | N77: 0 | O77: 0 | P77: 0 | Q77: 0 | R77: 0 | S77: 0 | T77: 0 | U77: 0 | V77: 0 | W77: 0 | X77: 0 | Y77: 0 | Z77: 0 | AA77: 0 | AB77: 0 | AC77: 0 | AD77: 0

Sheet Sheet3
B1: Office Govt Sr Sc Sch Malutana (Thanagazi) Alwar
B2: Salary Arrear from 01-Jan-2021 to Jan-2025
B3: =INDEX(Sheet1!B6:B20,MATCH(Sheet3!C3,Sheet1!C6:C20,0)) -> 1 | C3: Pramod Kumar Saini | O3: Employee Designation : Teacher
B4: Month / Year | C4: PAY DUE | G4: PAY DRAWN | K4: PAY DIFFERENCE | O4: =IFERROR(VLOOKUP(B3,Sheet1!$B$6:$L$20,10,0),"") -> GPF 2004 | R4: SIP | U4: RGHS | X4: I TAX | AA4: Total Dedu | AB4: Net Pay | AC4: TV No
C5: Basic | D5: DA | E5: HRA | F5: Total | G5: Basic | H5: DA | I5: HRA | J5: Total | K5: Basic | L5: DA | M5: HRA | N5: =IF(F5="","",F5) -> Total | O5: Due | P5: Dedu | Q5: Diff | R5: Due | S5: Dedu | T5: Diff | U5: Due | V5: Dedu | W5: Diff | X5: Due | Y5: Dedu | Z5: Diff
B6: 2021-01-01 | C6: 47900 | D6: 8143 | E6: 3832 | F6: =SUM(C6:E6) -> 59875 | G6: 45100 | H6: 7667 | I6: 3608 | J6: =SUM(G6:I6) -> 56375 | K6: =C6-G6 -> 2800 | L6: =D6-H6 -> 476 | M6: =E6-I6 -> 224 | N6: =SUM(K6:M6) -> 3500 | O6: 2850 | P6: 2850 | Q6: =O6-P6 -> 0 | R6: 0 | S6: 0 | T6: =R6-S6 -> 0 | U6: 658 | V6: 658 | W6: =U6-V6 -> 0 | X6: 350 | Y6: 0 | Z6: =X6-Y6 -> 350 | AA6: =Q6+T6+W6+Z6 -> 350 | AB6: =N6-AA6 -> 3150
B7: 2021-02-01 | C7: 47900 | D7: 8143 | E7: 3832 | F7: =SUM(C7:E7) -> 59875 | G7: 45100 | H7: 7667 | I7: 3608 | J7: =SUM(G7:I7) -> 56375 | K7: =C7-G7 -> 2800 | L7: =D7-H7 -> 476 | M7: =E7-I7 -> 224 | N7: =SUM(K7:M7) -> 3500 | O7: 2850 | P7: 2850 | Q7: =O7-P7 -> 0 | R7: 0 | S7: 0 | T7: =R7-S7 -> 0 | U7: 658 | V7: 658 | W7: =U7-V7 -> 0 | X7: 350 | Y7: 0 | Z7: =X7-Y7 -> 350 | AA7: =Q7+T7+W7+Z7 -> 350 | AB7: =N7-AA7 -> 3150
B8: 2021-03-01 | C8: 47900 | D8: 8143 | E8: 3832 | F8: =SUM(C8:E8) -> 59875 | G8: 45100 | H8: 7667 | I8: 3608 | J8: 56375 | K8: 2800 | L8: 476 | M8: 224 | N8: 3500 | O8: 2850 | P8: 2850 | Q8: 0 | R8: 0 | S8: 0 | T8: 0 | U8: 658 | V8: 658 | W8: 0 | X8: 350 | Y8: 0 | Z8: 350 | AA8: 350 | AB8: 3150
B9: 2021-04-01 | C9: 47900 | D9: 8143 | E9: 3832 | F9: 59875 | G9: 45100 | H9: 7667 | I9: 3608 | J9: 56375 | K9: 2800 | L9: 476 | M9: 224 | N9: 3500 | O9: 2850 | P9: 2850 | Q9: 0 | R9: 0 | S9: 0 | T9: 0 | U9: 658 | V9: 658 | W9: 0 | X9: 350 | Y9: 0 | Z9: 350 | AA9: 350 | AB9: 3150
B10: 2021-05-01 | C10: 47900 | D10: 8143 | E10: 3832 | F10: 59875 | G10: 45100 | H10: 7667 | I10: 3608 | J10: 56375 | K10: 2800 | L10: 476 | M10: 224 | N10: 3500 | O10: 2850 | P10: 2850 | Q10: 0 | R10: 0 | S10: 0 | T10: 0 | U10: 658 | V10: 658 | W10: 0 | X10: 350 | Y10: 0 | Z10: 350 | AA10: 350 | AB10: 3150
B11: 2021-06-01 | C11: 47900 | D11: 8143 | E11: 3832 | F11: 59875 | G11: 45100 | H11: 7667 | I11: 3608 | J11: 56375 | K11: 2800 | L11: 476 | M11: 224 | N11: 3500 | O11: 2850 | P11: 2850 | Q11: 0 | R11: 0 | S11: 0 | T11: 0 | U11: 658 | V11: 658 | W11: 0 | X11: 350 | Y11: 0 | Z11: 350 | AA11: 350 | AB11: 3150
B12: 2021-07-01 | C12: 49300 | D12: 15283 | E12: 4437 | F12: 69020 | G12: 46500 | H12: 7905 | I12: 4185 | J12: 58590 | K12: 2800 | L12: 7378 | M12: 252 | N12: 10430 | O12: 9752 | P12: 9360 | Q12: 392 | R12: 0 | S12: 0 | T12: 0 | U12: 658 | V12: 658 | W12: 0 | X12: 1043 | Y12: 0 | Z12: 1043 | AA12: 1435 | AB12: 8995
B13: 2021-08-01 | C13: 49300 | D13: 15283 | E13: 4437 | F13: 69020 | G13: 46500 | H13: 7905 | I13: 4185 | J13: 58590 | K13: 2800 | L13: 7378 | M13: 252 | N13: 10430 | O13: 9752 | P13: 9360 | Q13: 392 | R13: 0 | S13: 0 | T13: 0 | U13: 658 | V13: 658 | W13: 0 | X13: 1043 | Y13: 0 | Z13: 1043 | AA13: 1435 | AB13: 8995
B14: 2021-09-01 | C14: 49300 | D14: 15283 | E14: 4437 | F14: 69020 | G14: 46500 | H14: 7905 | I14: 4185 | J14: 58590 | K14: 2800 | L14: 7378 | M14: 252 | N14: 10430 | O14: 9752 | P14: 9360 | Q14: 392 | R14: 0 | S14: 0 | T14: 0 | U14: 658 | V14: 658 | W14: 0 | X14: 1043 | Y14: 0 | Z14: 1043 | AA14: 1435 | AB14: 8995
B15: 2021-10-01 | C15: 49300 | D15: 15283 | E15: 4437 | F15: 69020 | G15: 46500 | H15: 14415 | I15: 4185 | J15: 65100 | K15: 2800 | L15: 868 | M15: 252 | N15: 3920 | O15: 2850 | P15: 2850 | Q15: 0 | R15: 0 | S15: 0 | T15: 0 | U15: 658 | V15: 658 | W15: 0 | X15: 392 | Y15: 0 | Z15: 392 | AA15: 392 | AB15: 3528
B16: 2021-11-01 | C16: 49300 | D16: 15283 | E16: 4437 | F16: 69020 | G16: 46500 | H16: 14415 | I16: 4185 | J16: 65100 | K16: 2800 | L16: 868 | M16: 252 | N16: 3920 | O16: 2850 | P16: 2850 | Q16: 0 | R16: 0 | S16: 0 | T16: 0 | U16: 658 | V16: 658 | W16: 0 | X16: 392 | Y16: 0 | Z16: 392 | AA16: 392 | AB16: 3528
B17: 2021-12-01 | C17: 49300 | D17: 15283 | E17: 4437 | F17: 69020 | G17: 46500 | H17: 14415 | I17: 4185 | J17: 65100 | K17: 2800 | L17: 868 | M17: 252 | N17: 3920 | O17: 2850 | P17: 2850 | Q17: 0 | R17: 0 | S17: 0 | T17: 0 | U17: 658 | V17: 658 | W17: 0 | X17: 392 | Y17: 0 | Z17: 392 | AA17: 392 | AB17: 3528
B18: 2022-01-01 | C18: 49300 | D18: 16762 | E18: 4437 | F18: 70499 | G18: 46500 | H18: 14415 | I18: 4185 | J18: 65100 | K18: 2800 | L18: 2347 | M18: 252 | N18: 5399 | O18: 4329 | P18: 4245 | Q18: 84 | R18: 0 | S18: 0 | T18: 0 | U18: 658 | V18: 658 | W18: 0 | X18: 540 | Y18: 0 | Z18: 540 | AA18: 624 | AB18: 4775
B19: 2022-02-01 | C19: 49300 | D19: 16762 | E19: 4437 | F19: 70499 | G19: 46500 | H19: 14415 | I19: 4185 | J19: 65100 | K19: 2800 | L19: 2347 | M19: 252 | N19: 5399 | O19: 4329 | P19: 4245 | Q19: 84 | R19: 0 | S19: 0 | T19: 0 | U19: 658 | V19: 658 | W19: 0 | X19: 540 | Y19: 0 | Z19: 540 | AA19: 624 | AB19: 4775
B20: 2022-03-01 | C20: 49300 | D20: 16762 | E20: 4437 | F20: 70499 | G20: 46500 | H20: 14415 | I20: 4185 | J20: 65100 | K20: 2800 | L20: 2347 | M20: 252 | N20: 5399 | O20: 4329 | P20: 4245 | Q20: 84 | R20: 0 | S20: 0 | T20: 0 | U20: 658 | V20: 658 | W20: 0 | X20: 540 | Y20: 0 | Z20: 540 | AA20: 624 | AB20: 4775
B21: 2022-04-01 | C21: 49300 | D21: 16762 | E21: 4437 | F21: 70499 | G21: 46500 | H21: 15810 | I21: 4185 | J21: 66495 | K21: 2800 | L21: 952 | M21: 252 | N21: 4004 | O21: 2850 | P21: 2850 | Q21: 0 | R21: 0 | S21: 0 | T21: 0 | U21: 658 | V21: 658 | W21: 0 | X21: 400 | Y21: 0 | Z21: 400 | AA21: 400 | AB21: 3604
B22: 2022-05-01 | C22: 49300 | D22: 16762 | E22: 4437 | F22: 70499 | G22: 46500 | H22: 15810 | I22: 4185 | J22: 66495 | K22: 2800 | L22: 952 | M22: 252 | N22: 4004 | O22: 2850 | P22: 2850 | Q22: 0 | R22: 0 | S22: 0 | T22: 0 | U22: 658 | V22: 658 | W22: 0 | X22: 400 | Y22: 0 | Z22: 400 | AA22: 400 | AB22: 3604
B23: 2022-06-01 | C23: 49300 | D23: 16762 | E23: 4437 | F23: 70499 | G23: 46500 | H23: 15810 | I23: 4185 | J23: 66495 | K23: 2800 | L23: 952 | M23: 252 | N23: 4004 | O23: 2850 | P23: 2850 | Q23: 0 | R23: 0 | S23: 0 | T23: 0 | U23: 658 | V23: 658 | W23: 0 | X23: 400 | Y23: 0 | Z23: 400 | AA23: 400 | AB23: 3604
B24: 2022-07-01 | C24: 50800 | D24: 19304 | E24: 4572 | F24: 74676 | G24: 47900 | H24: 16286 | I24: 4311 | J24: 68497 | K24: 2900 | L24: 3018 | M24: 261 | N24: 6179 | O24: 4882 | P24: 4766 | Q24: 116 | R24: 0 | S24: 0 | T24: 0 | U24: 658 | V24: 658 | W24: 0 | X24: 618 | Y24: 0 | Z24: 618 | AA24: 734 | AB24: 5445
B25: 2022-08-01 | C25: 50800 | D25: 19304 | E25: 4572 | F25: 74676 | G25: 47900 | H25: 16286 | I25: 4311 | J25: 68497 | K25: 2900 | L25: 3018 | M25: 261 | N25: 6179 | O25: 4882 | P25: 4766 | Q25: 116 | R25: 0 | S25: 0 | T25: 0 | U25: 658 | V25: 658 | W25: 0 | X25: 618 | Y25: 0 | Z25: 618 | AA25: 734 | AB25: 5445
B26: 2022-09-01 | C26: 50800 | D26: 19304 | E26: 4572 | F26: 74676 | G26: 47900 | H26: 16286 | I26: 4311 | J26: 68497 | K26: 2900 | L26: 3018 | M26: 261 | N26: 6179 | O26: 4882 | P26: 4766 | Q26: 116 | R26: 0 | S26: 0 | T26: 0 | U26: 658 | V26: 658 | W26: 0 | X26: 618 | Y26: 0 | Z26: 618 | AA26: 734 | AB26: 5445
B27: 2022-10-01 | C27: 50800 | D27: 19304 | E27: 4572 | F27: 74676 | G27: 47900 | H27: 18202 | I27: 4311 | J27: 70413 | K27: 2900 | L27: 1102 | M27: 261 | N27: 4263 | O27: 2850 | P27: 2850 | Q27: 0 | R27: 0 | S27: 0 | T27: 0 | U27: 658 | V27: 658 | W27: 0 | X27: 426 | Y27: 0 | Z27: 426 | AA27: 426 | AB27: 3837
B28: 2022-11-01 | C28: 50800 | D28: 19304 | E28: 4572 | F28: 74676 | G28: 47900 | H28: 18202 | I28: 4311 | J28: 70413 | K28: 2900 | L28: 1102 | M28: 261 | N28: 4263 | O28: 2850 | P28: 2850 | Q28: 0 | R28: 0 | S28: 0 | T28: 0 | U28: 658 | V28: 658 | W28: 0 | X28: 426 | Y28: 0 | Z28: 426 | AA28: 426 | AB28: 3837
B29: 2022-12-01 | C29: 50800 | D29: 19304 | E29: 4572 | F29: 74676 | G29: 47900 | H29: 18202 | I29: 4311 | J29: 70413 | K29: 2900 | L29: 1102 | M29: 261 | N29: 4263 | O29: 2850 | P29: 2850 | Q29: 0 | R29: 0 | S29: 0 | T29: 0 | U29: 658 | V29: 658 | W29: 0 | X29: 426 | Y29: 0 | Z29: 426 | AA29: 426 | AB29: 3837
B30: 2023-01-01 | C30: 50800 | D30: 21336 | E30: 4572 | F30: 76708 | G30: 47900 | H30: 18202 | I30: 4311 | J30: 70413 | K30: 2900 | L30: 3134 | M30: 261 | N30: 6295 | O30: 4882 | P30: 4766 | Q30: 116 | R30: 0 | S30: 0 | T30: 0 | U30: 658 | V30: 658 | W30: 0 | X30: 630 | Y30: 0 | Z30: 630 | AA30: 746 | AB30: 5549
B31: 2023-02-01 | C31: 50800 | D31: 21336 | E31: 4572 | F31: 76708 | G31: 47900 | H31: 18202 | I31: 4311 | J31: 70413 | K31: 2900 | L31: 3134 | M31: 261 | N31: 6295 | O31: 4882 | P31: 4766 | Q31: 116 | R31: 0 | S31: 0 | T31: 0 | U31: 658 | V31: 658 | W31: 0 | X31: 630 | Y31: 0 | Z31: 630 | AA31: 746 | AB31: 5549
B32: 2023-03-01 | C32: 50800 | D32: 21336 | E32: 4572 | F32: 76708 | G32: 47900 | H32: 18202 | I32: 4311 | J32: 70413 | K32: 2900 | L32: 3134 | M32: 261 | N32: 6295 | O32: 4882 | P32: 4766 | Q32: 116 | R32: 0 | S32: 0 | T32: 0 | U32: 658 | V32: 658 | W32: 0 | X32: 630 | Y32: 0 | Z32: 630 | AA32: 746 | AB32: 5549
B33: 2023-04-01 | C33: 50800 | D33: 21336 | E33: 4572 | F33: 76708 | G33: 47900 | H33: 20118 | I33: 4311 | J33: 72329 | K33: 2900 | L33: 1218 | M33: 261 | N33: 4379 | O33: 2850 | P33: 2850 | Q33: 0 | R33: 0 | S33: 0 | T33: 0 | U33: 658 | V33: 658 | W33: 0 | X33: 438 | Y33: 0 | Z33: 438 | AA33: 438 | AB33: 3941
B34: 2023-05-01 | C34: 50800 | D34: 21336 | E34: 4572 | F34: 76708 | G34: 47900 | H34: 20118 | I34: 4311 | J34: 72329 | K34: 2900 | L34: 1218 | M34: 261 | N34: 4379 | O34: 2850 | P34: 2850 | Q34: 0 | R34: 0 | S34: 0 | T34: 0 | U34: 658 | V34: 658 | W34: 0 | X34: 438 | Y34: 0 | Z34: 438 | AA34: 438 | AB34: 3941
B35: 2023-06-01 | C35: 50800 | D35: 21336 | E35: 4572 | F35: 76708 | G35: 47900 | H35: 20118 | I35: 4311 | J35: 72329 | K35: 2900 | L35: 1218 | M35: 261 | N35: 4379 | O35: 2850 | P35: 2850 | Q35: 0 | R35: 0 | S35: 0 | T35: 0 | U35: 658 | V35: 658 | W35: 0 | X35: 438 | Y35: 0 | Z35: 438 | AA35: 438 | AB35: 3941
B36: 2023-07-01 | C36: 52300 | D36: 24058 | E36: 4707 | F36: 81065 | G36: 49300 | H36: 22678 | I36: 4437 | J36: 76415 | K36: 3000 | L36: 1380 | M36: 270 | N36: 4650 | O36: 3575 | P36: 2850 | Q36: 725 | R36: 0 | S36: 0 | T36: 0 | U36: 658 | V36: 658 | W36: 0 | X36: 465 | Y36: 0 | Z36: 465 | AA36: 1190 | AB36: 3460
B37: 2023-08-01 | C37: 52300 | D37: 24058 | E37: 4707 | F37: 81065 | G37: 49300 | H37: 22678 | I37: 4437 | J37: 76415 | K37: 3000 | L37: 1380 | M37: 270 | N37: 4650 | O37: 3575 | P37: 2850 | Q37: 725 | R37: 0 | S37: 0 | T37: 0 | U37: 658 | V37: 658 | W37: 0 | X37: 465 | Y37: 0 | Z37: 465 | AA37: 1190 | AB37: 3460
B38: 2023-09-01 | C38: 52300 | D38: 24058 | E38: 4707 | F38: 81065 | G38: 49300 | H38: 22678 | I38: 4437 | J38: 76415 | K38: 3000 | L38: 1380 | M38: 270 | N38: 4650 | O38: 3575 | P38: 2850 | Q38: 725 | R38: 0 | S38: 0 | T38: 0 | U38: 658 | V38: 658 | W38: 0 | X38: 465 | Y38: 0 | Z38: 465 | AA38: 1190 | AB38: 3460
B39: 2023-10-01 | C39: 52300 | D39: 24058 | E39: 4707 | F39: 81065 | G39: 49300 | H39: 22678 | I39: 4437 | J39: 76415 | K39: 3000 | L39: 1380 | M39: 270 | N39: 4650 | O39: 3575 | P39: 2850 | Q39: 725 | R39: 0 | S39: 0 | T39: 0 | U39: 658 | V39: 658 | W39: 0 | X39: 465 | Y39: 0 | Z39: 465 | AA39: 1190 | AB39: 3460
B40: 2023-11-01 | C40: 52300 | D40: 24058 | E40: 4707 | F40: 81065 | G40: 49300 | H40: 22678 | I40: 4437 | J40: 76415 | K40: 3000 | L40: 1380 | M40: 270 | N40: 4650 | O40: 3575 | P40: 2850 | Q40: 725 | R40: 0 | S40: 0 | T40: 0 | U40: 658 | V40: 658 | W40: 0 | X40: 465 | Y40: 0 | Z40: 465 | AA40: 1190 | AB40: 3460
B41: 2023-12-01 | C41: 52300 | D41: 24058 | E41: 4707 | F41: 81065 | G41: 49300 | H41: 22678 | I41: 4437 | J41: 76415 | K41: 3000 | L41: 1380 | M41: 270 | N41: 4650 | O41: 3575 | P41: 2850 | Q41: 725 | R41: 0 | S41: 0 | T41: 0 | U41: 658 | V41: 658 | W41: 0 | X41: 465 | Y41: 0 | Z41: 465 | AA41: 1190 | AB41: 3460
B42: 2024-01-01 | C42: 52300 | D42: 26150 | E42: 4707 | F42: 83157 | G42: 49300 | H42: 24650 | I42: 4437 | J42: 78387 | K42: 3000 | L42: 1500 | M42: 270 | N42: 4770 | O42: 3575 | P42: 2850 | Q42: 725 | R42: 0 | S42: 0 | T42: 0 | U42: 658 | V42: 658 | W42: 0 | X42: 477 | Y42: 0 | Z42: 477 | AA42: 1202 | AB42: 3568
B43: 2024-02-01 | C43: 52300 | D43: 26150 | E43: 4707 | F43: 83157 | G43: 49300 | H43: 24650 | I43: 4437 | J43: 78387 | K43: 3000 | L43: 1500 | M43: 270 | N43: 4770 | O43: 3575 | P43: 2850 | Q43: 725 | R43: 0 | S43: 0 | T43: 0 | U43: 658 | V43: 658 | W43: 0 | X43: 477 | Y43: 0 | Z43: 477 | AA43: 1202 | AB43: 3568
B44: 2024-03-01 | C44: 52300 | D44: 26150 | E44: 4707 | F44: 83157 | G44: 49300 | H44: 24650 | I44: 4437 | J44: 78387 | K44: 3000 | L44: 1500 | M44: 270 | N44: 4770 | O44: 3575 | P44: 2850 | Q44: 725 | R44: 0 | S44: 0 | T44: 0 | U44: 658 | V44: 658 | W44: 0 | X44: 477 | Y44: 0 | Z44: 477 | AA44: 1202 | AB44: 3568
B45: 2024-04-01 | C45: 52300 | D45: 26150 | E45: 4707 | F45: 83157 | G45: 49300 | H45: 24650 | I45: 4437 | J45: 78387 | K45: 3000 | L45: 1500 | M45: 270 | N45: 4770 | O45: 3575 | P45: 2850 | Q45: 725 | R45: 0 | S45: 0 | T45: 0 | U45: 658 | V45: 658 | W45: 0 | X45: 477 | Y45: 0 | Z45: 477 | AA45: 1202 | AB45: 3568
B46: 2024-05-01 | C46: 52300 | D46: 26150 | E46: 4707 | F46: 83157 | G46: 49300 | H46: 24650 | I46: 4437 | J46: 78387 | K46: 3000 | L46: 1500 | M46: 270 | N46: 4770 | O46: 3575 | P46: 2850 | Q46: 725 | R46: 0 | S46: 0 | T46: 0 | U46: 658 | V46: 658 | W46: 0 | X46: 477 | Y46: 0 | Z46: 477 | AA46: 1202 | AB46: 3568
B47: 2024-06-01 | C47: 52300 | D47: 26150 | E47: 4707 | F47: 83157 | G47: 49300 | H47: 24650 | I47: 4437 | J47: 78387 | K47: 3000 | L47: 1500 | M47: 270 | N47: 4770 | O47: 3575 | P47: 2850 | Q47: 725 | R47: 0 | S47: 0 | T47: 0 | U47: 658 | V47: 658 | W47: 0 | X47: 477 | Y47: 0 | Z47: 477 | AA47: 1202 | AB47: 3568
B48: 2024-07-01 | C48: 53900 | D48: 28567 | E48: 4851 | F48: 87318 | G48: 50800 | H48: 26924 | I48: 4572 | J48: 82296 | K48: 3100 | L48: 1643 | M48: 279 | N48: 5022 | O48: 3575 | P48: 2850 | Q48: 725 | R48: 0 | S48: 0 | T48: 0 | U48: 658 | V48: 658 | W48: 0 | X48: 502 | Y48: 0 | Z48: 502 | AA48: 1227 | AB48: 3795
B49: 2024-08-01 | C49: 53900 | D49: 28567 | E49: 4851 | F49: 87318 | G49: 50800 | H49: 26924 | I49: 4572 | J49: 82296 | K49: 3100 | L49: 1643 | M49: 279 | N49: 5022 | O49: 3575 | P49: 2850 | Q49: 725 | R49: 0 | S49: 0 | T49: 0 | U49: 658 | V49: 658 | W49: 0 | X49: 502 | Y49: 0 | Z49: 502 | AA49: 1227 | AB49: 3795
B50: 2024-09-01 | C50: 53900 | D50: 28567 | E50: 4851 | F50: 87318 | G50: 50800 | H50: 25400 | I50: 4572 | J50: 80772 | K50: 3100 | L50: 3167 | M50: 279 | N50: 6546 | O50: 5192 | P50: 4374 | Q50: 818 | R50: 0 | S50: 0 | T50: 0 | U50: 658 | V50: 658 | W50: 0 | X50: 655 | Y50: 0 | Z50: 655 | AA50: 1473 | AB50: 5073
B51: 2024-10-01 | C51: 53900 | D51: 0 | E51: 0 | F51: 53900 | G51: 50800 | H51: 0 | I51: 0 | J51: 50800 | K51: 3100 | L51: 0 | M51: 0 | N51: 3100 | O51: 3575 | P51: 2850 | Q51: 725 | R51: 0 | S51: 0 | T51: 0 | U51: 658 | V51: 658 | W51: 0 | X51: 310 | Y51: 0 | Z51: 310 | AA51: 1035 | AB51: 2065
B52: 2024-11-01 | C52: 53900 | D52: 0 | E52: 0 | F52: 53900 | G52: 50800 | H52: 0 | I52: 0 | J52: 50800 | K52: 3100 | L52: 0 | M52: 0 | N52: 3100 | O52: 3575 | P52: 2850 | Q52: 725 | R52: 0 | S52: 0 | T52: 0 | U52: 658 | V52: 658 | W52: 0 | X52: 310 | Y52: 0 | Z52: 310 | AA52: 1035 | AB52: 2065
B53: 2024-12-01 | C53: 53900 | D53: 0 | E53: 0 | F53: 53900 | G53: 50800 | H53: 0 | I53: 0 | J53: 50800 | K53: 3100 | L53: 0 | M53: 0 | N53: 3100 | O53: 3575 | P53: 2850 | Q53: 725 | R53: 0 | S53: 0 | T53: 0 | U53: 658 | V53: 658 | W53: 0 | X53: 310 | Y53: 0 | Z53: 310 | AA53: 1035 | AB53: 2065
B54: 2025-01-01 | C54: 53900 | D54: 0 | E54: 0 | F54: 53900 | G54: 50800 | H54: 0 | I54: 0 | J54: 50800 | K54: 3100 | L54: 0 | M54: 0 | N54: 3100 | O54: 3575 | P54: 2850 | Q54: 725 | R54: 0 | S54: 0 | T54: 0 | U54: 658 | V54: 658 | W54: 0 | X54: 310 | Y54: 0 | Z54: 310 | AA54: 1035 | AB54: 2065
C55: 0 | D55: 0 | E55: 0 | F55: 0 | G55: 0 | H55: 0 | I55: 0 | J55: 0 | K55: 0 | L55: 0 | M55: 0 | N55: 0 | O55: 0 | P55: 0 | Q55: 0 | R55: 0 | S55: 0 | T55: 0 | U55: 0 | V55: 0 | W55: 0 | X55: 0 | Y55: 0 | Z55: 0 | AA55: 0 | AB55: 0
C56: 0 | D56: 0 | E56: 0 | F56: 0 | G56: 0 | H56: 0 | I56: 0 | J56: 0 | K56: 0 | L56: 0 | M56: 0 | N56: 0 | O56: 0 | P56: 0 | Q56: 0 | R56: 0 | S56: 0 | T56: 0 | U56: 0 | V56: 0 | W56: 0 | X56: 0 | Y56: 0 | Z56: 0 | AA56: 0 | AB56: 0
C57: 0 | D57: 0 | E57: 0 | F57: 0 | G57: 0 | H57: 0 | I57: 0 | J57: 0 | K57: 0 | L57: 0 | M57: 0 | N57: 0 | O57: 0 | P57: 0 | Q57: 0 | R57: 0 | S57: 0 | T57: 0 | U57: 0 | V57: 0 | W57: 0 | X57: 0 | Y57: 0 | Z57: 0 | AA57: 0 | AB57: 0
C58: 0 | D58: 0 | E58: 0 | F58: 0 | G58: 0 | H58: 0 | I58: 0 | J58: 0 | K58: 0 | L58: 0 | M58: 0 | N58: 0 | O58: 0 | P58: 0 | Q58: 0 | R58: 0 | S58: 0 | T58: 0 | U58: 0 | V58: 0 | W58: 0 | X58: 0 | Y58: 0 | Z58: 0 | AA58: 0 | AB58: 0
C59: 0 | D59: 0 | E59: 0 | F59: 0 | G59: 0 | H59: 0 | I59: 0 | J59: 0 | K59: 0 | L59: 0 | M59: 0 | N59: 0 | O59: 0 | P59: 0 | Q59: 0 | R59: 0 | S59: 0 | T59: 0 | U59: 0 | V59: 0 | W59: 0 | X59: 0 | Y59: 0 | Z59: 0 | AA59: 0 | AB59: 0
C60: 0 | D60: 0 | E60: 0 | F60: 0 | G60: 0 | H60: 0 | I60: 0 | J60: 0 | K60: 0 | L60: 0 | M60: 0 | N60: 0 | O60: 0 | P60: 0 | Q60: 0 | R60: 0 | S60: 0 | T60: 0 | U60: 0 | V60: 0 | W60: 0 | X60: 0 | Y60: 0 | Z60: 0 | AA60: 0 | AB60: 0
C61: 0 | D61: 0 | E61: 0 | F61: 0 | G61: 0 | H61: 0 | I61: 0 | J61: 0 | K61: 0 | L61: 0 | M61: 0 | N61: 0 | O61: 0 | P61: 0 | Q61: 0 | R61: 0 | S61: 0 | T61: 0 | U61: 0 | V61: 0 | W61: 0 | X61: 0 | Y61: 0 | Z61: 0 | AA61: 0 | AB61: 0
C62: 0 | D62: 0 | E62: 0 | F62: 0 | G62: 0 | H62: 0 | I62: 0 | J62: 0 | K62: 0 | L62: 0 | M62: 0 | N62: 0 | O62: 0 | P62: 0 | Q62: 0 | R62: 0 | S62: 0 | T62: 0 | U62: 0 | V62: 0 | W62: 0 | X62: 0 | Y62: 0 | Z62: 0 | AA62: 0 | AB62: 0
C63: 0 | D63: 0 | E63: 0 | F63: 0 | G63: 0 | H63: 0 | I63: 0 | J63: 0 | K63: 0 | L63: 0 | M63: 0 | N63: 0 | O63: 0 | P63: 0 | Q63: 0 | R63: 0 | S63: 0 | T63: 0 | U63: 0 | V63: 0 | W63: 0 | X63: 0 | Y63: 0 | Z63: 0 | AA63: 0 | AB63: 0
C64: 0 | D64: 0 | E64: 0 | F64: 0 | G64: 0 | H64: 0 | I64: 0 | J64: 0 | K64: 0 | L64: 0 | M64: 0 | N64: 0 | O64: 0 | P64: 0 | Q64: 0 | R64: 0 | S64: 0 | T64: 0 | U64: 0 | V64: 0 | W64: 0 | X64: 0 | Y64: 0 | Z64: 0 | AA64: 0 | AB64: 0
C65: 0 | D65: 0 | E65: 0 | F65: 0 | G65: 0 | H65: 0 | I65: 0 | J65: 0 | K65: 0 | L65: 0 | M65: 0 | N65: 0 | O65: 0 | P65: 0 | Q65: 0 | R65: 0 | S65: 0 | T65: 0 | U65: 0 | V65: 0 | W65: 0 | X65: 0 | Y65: 0 | Z65: 0 | AA65: 0 | AB65: 0
C66: 0 | D66: 0 | E66: 0 | F66: 0 | G66: 0 | H66: 0 | I66: 0 | J66: 0 | K66: 0 | L66: 0 | M66: 0 | N66: 0 | O66: 0 | P66: 0 | Q66: 0 | R66: 0 | S66: 0 | T66: 0 | U66: 0 | V66: 0 | W66: 0 | X66: 0 | Y66: 0 | Z66: 0 | AA66: 0 | AB66: 0
C67: 0 | D67: 0 | E67: 0 | F67: 0 | G67: 0 | H67: 0 | I67: 0 | J67: 0 | K67: 0 | L67: 0 | M67: 0 | N67: 0 | O67: 0 | P67: 0 | Q67: 0 | R67: 0 | S67: 0 | T67: 0 | U67: 0 | V67: 0 | W67: 0 | X67: 0 | Y67: 0 | Z67: 0 | AA67: 0 | AB67: 0
C68: 0 | D68: 0 | E68: 0 | F68: 0 | G68: 0 | H68: 0 | I68: 0 | J68: 0 | K68: 0 | L68: 0 | M68: 0 | N68: 0 | O68: 0 | P68: 0 | Q68: 0 | R68: 0 | S68: 0 | T68: 0 | U68: 0 | V68: 0 | W68: 0 | X68: 0 | Y68: 0 | Z68: 0 | AA68: 0 | AB68: 0
C69: 0 | D69: 0 | E69: 0 | F69: 0 | G69: 0 | H69: 0 | I69: 0 | J69: 0 | K69: 0 | L69: 0 | M69: 0 | N69: 0 | O69: 0 | P69: 0 | Q69: 0 | R69: 0 | S69: 0 | T69: 0 | U69: 0 | V69: 0 | W69: 0 | X69: 0 | Y69: 0 | Z69: 0 | AA69: 0 | AB69: 0
C70: 0 | D70: 0 | E70: 0 | F70: 0 | G70: 0 | H70: 0 | I70: 0 | J70: 0 | K70: 0 | L70: 0 | M70: 0 | N70: 0 | O70: 0 | P70: 0 | Q70: 0 | R70: 0 | S70: 0 | T70: 0 | U70: 0 | V70: 0 | W70: 0 | X70: 0 | Y70: 0 | Z70: 0 | AA70: 0 | AB70: 0
C71: 0 | D71: 0 | E71: 0 | F71: 0 | G71: 0 | H71: 0 | I71: 0 | J71: =SUM(G71:I71) -> 0 | K71: =C71-G71 -> 0 | L71: =D71-H71 -> 0 | M71: =E71-I71 -> 0 | N71: =SUM(K71:M71) -> 0 | O71: 0 | P71: 0 | Q71: =O71-P71 -> 0 | R71: 0 | S71: 0 | T71: =R71-S71 -> 0 | U71: 0 | V71: 0 | W71: =U71-V71 -> 0 | X71: 0 | Y71: 0 | Z71: =X71-Y71 -> 0 | AA71: =Q71+T71+W71+Z71 -> 0 | AB71: =N71-AA71 -> 0
C72: 0 | D72: 0 | E72: 0 | F72: =SUM(C72:E72) -> 0 | G72: 0 | H72: 0 | I72: 0 | J72: 0 | K72: 0 | L72: 0 | M72: 0 | N72: 0 | O72: 0 | P72: 0 | Q72: 0 | R72: 0 | S72: 0 | T72: 0 | U72: 0 | V72: 0 | W72: 0 | X72: 0 | Y72: 0 | Z72: 0 | AA72: 0 | AB72: 0
C73: 0 | D73: 0 | E73: 0 | F73: 0 | G73: 0 | H73: 0 | I73: 0 | J73: 0 | K73: 0 | L73: 0 | M73: 0 | N73: 0 | O73: 0 | P73: 0 | Q73: 0 | R73: 0 | S73: 0 | T73: 0 | U73: 0 | V73: 0 | W73: 0 | X73: 0 | Y73: 0 | Z73: 0 | AA73: 0 | AB73: 0
C74: 0 | D74: 0 | E74: 0 | F74: 0 | G74: 0 | H74: 0 | I74: 0 | J74: 0 | K74: 0 | L74: 0 | M74: 0 | N74: 0 | O74: 0 | P74: 0 | Q74: 0 | R74: 0 | S74: 0 | T74: 0 | U74: 0 | V74: 0 | W74: 0 | X74: 0 | Y74: 0 | Z74: 0 | AA74: 0 | AB74: 0
C75: 0 | D75: 0 | E75: 0 | F75: 0 | G75: 0 | H75: 0 | I75: 0 | J75: 0 | K75: 0 | L75: 0 | M75: 0 | N75: 0 | O75: 0 | P75: 0 | Q75: 0 | R75: 0 | S75: 0 | T75: 0 | U75: 0 | V75: 0 | W75: 0 | X75: 0 | Y75: 0 | Z75: 0 | AA75: 0 | AB75: 0
C76: 0 | D76: 0 | E76: 0 | F76: 0 | G76: 0 | H76: 0 | I76: 0 | J76: 0 | K76: 0 | L76: 0 | M76: 0 | N76: 0 | O76: 0 | P76: 0 | Q76: 0 | R76: 0 | S76: 0 | T76: 0 | U76: 0 | V76: 0 | W76: 0 | X76: 0 | Y76: 0 | Z76: 0 | AA76: 0 | AB76: 0
C77: 0 | D77: 0 | E77: 0 | F77: 0 | G77: 0 | H77: 0 | I77: 0 | J77: 0 | K77: 0 | L77: 0 | M77: 0 | N77: 0 | O77: 0 | P77: 0 | Q77: 0 | R77: 0 | S77: 0 | T77: 0 | U77: 0 | V77: 0 | W77: 0 | X77: 0 | Y77: 0 | Z77: 0 | AA77: 0 | AB77: 0
B78: Total | C78: =SUM(C6:C77) -> 2493500 | D78: =SUM(D6:D77) -> 871917 | E78: 202137 | F78: 3567554 | G78: 2350600 | H78: 785277 | I78: 190560 | J78: 3326437 | K78: 142900 | L78: 86640 | M78: 11577 | N78: 241117 | O78: 192377 | P78: 176385 | Q78: 15992 | R78: 0 | S78: 0 | T78: 0 | U78: 32242 | V78: 32242 | W78: 0 | X78: 24112 | Y78: 0 | Z78: 24112 | AA78: 40104 | AB78: 201013
AB79: ="Net payable amount in words "&SpellIndian(AB78) -> Net payable amount in words Rupees Two Lac One Thousand Thirteen Only
B80: izek.khdj.k %
B81: 1- izekf.kr fd;k tkrk gS fd bl osru varj fooj.k izi= dk ;ksx QykoV tkWp fy;k x;k gS tks lgh gSA
B82: 2- izekf.kr fd;k tkrk gS fd bl fcy dk Hkqxrku iwoZ esa ugha mBk;k x;k gS vkSj uk gh mBk;k tkosxkA
B83: 3- izekf.kr fd;k tkrk gS fd lkekU; foÙkh; ,oa ys[kk fu;e vuqlkj jkf'k dk dk;kZy; fjdkWMZ esa bUnzkt dj fn;k x;k gSA
B84: 4- izekf.kr fd;k tkrk gS fd vk;dj vf/kfu;e 1961 ds fu;e vuqlkj vk;dj dh dVkSrh dj nh x;h gSA
AB86: DDO's Signature with Official SEAL

Sheet Sheet4
B1: Allowance Rates
B3: MY | C3: Due DA | D3: Drawn DA | E3: Due HRA | F3: Drawn HRA
B4: =TEXT(Sheet2!F6,"MMM-YYYY") -> Jan-2021 | C4: 17 | D4: 17 | E4: 8 | F4: 8
B5: =TEXT(Sheet2!F7,"MMM-YYYY") -> Feb-2021 | C5: 17 | D5: 17 | E5: 8 | F5: 8
B6: =TEXT(Sheet2!F8,"MMM-YYYY") -> Mar-2021 | C6: 17 | D6: 17 | E6: 8 | F6: 8
B7: =TEXT(Sheet2!F9,"MMM-YYYY") -> Apr-2021 | C7: 17 | D7: 17 | E7: 8 | F7: 8
B8: =TEXT(Sheet2!F10,"MMM-YYYY") -> May-2021 | C8: 17 | D8: 17 | E8: 8 | F8: 8
B9: =TEXT(Sheet2!F11,"MMM-YYYY") -> Jun-2021 | C9: 17 | D9: 17 | E9: 8 | F9: 8
B10: =TEXT(Sheet2!F12,"MMM-YYYY") -> Jul-2021 | C10: 31 | D10: 17 | E10: 9 | F10: 9
B11: =TEXT(Sheet2!F13,"MMM-YYYY") -> Aug-2021 | C11: 31 | D11: 17 | E11: 9 | F11: 9
B12: =TEXT(Sheet2!F14,"MMM-YYYY") -> Sep-2021 | C12: 31 | D12: 17 | E12: 9 | F12: 9
B13: =TEXT(Sheet2!F15,"MMM-YYYY") -> Oct-2021 | C13: 31 | D13: 31 | E13: 9 | F13: 9
B14: =TEXT(Sheet2!F16,"MMM-YYYY") -> Nov-2021 | C14: 31 | D14: 31 | E14: 9 | F14: 9
B15: =TEXT(Sheet2!F17,"MMM-YYYY") -> Dec-2021 | C15: 31 | D15: 31 | E15: 9 | F15: 9
B16: =TEXT(Sheet2!F18,"MMM-YYYY") -> Jan-2022 | C16: 34 | D16: 31 | E16: 9 | F16: 9
B17: =TEXT(Sheet2!F19,"MMM-YYYY") -> Feb-2022 | C17: 34 | D17: 31 | E17: 9 | F17: 9
B18: =TEXT(Sheet2!F20,"MMM-YYYY") -> Mar-2022 | C18: 34 | D18: 31 | E18: 9 | F18: 9
B19: =TEXT(Sheet2!F21,"MMM-YYYY") -> Apr-2022 | C19: 34 | D19: 34 | E19: 9 | F19: 9
B20: =TEXT(Sheet2!F22,"MMM-YYYY") -> May-2022 | C20: 34 | D20: 34 | E20: 9 | F20: 9
B21: =TEXT(Sheet2!F23,"MMM-YYYY") -> Jun-2022 | C21: 34 | D21: 34 | E21: 9 | F21: 9
B22: =TEXT(Sheet2!F24,"MMM-YYYY") -> Jul-2022 | C22: 38 | D22: 34 | E22: 9 | F22: 9
B23: =TEXT(Sheet2!F25,"MMM-YYYY") -> Aug-2022 | C23: 38 | D23: 34 | E23: 9 | F23: 9
B24: =TEXT(Sheet2!F26,"MMM-YYYY") -> Sep-2022 | C24: 38 | D24: 34 | E24: 9 | F24: 9
B25: =TEXT(Sheet2!F27,"MMM-YYYY") -> Oct-2022 | C25: 38 | D25: 38 | E25: 9 | F25: 9
B26: =TEXT(Sheet2!F28,"MMM-YYYY") -> Nov-2022 | C26: 38 | D26: 38 | E26: 9 | F26: 9
B27: =TEXT(Sheet2!F29,"MMM-YYYY") -> Dec-2022 | C27: 38 | D27: 38 | E27: 9 | F27: 9
B28: =TEXT(Sheet2!F30,"MMM-YYYY") -> Jan-2023 | C28: 42 | D28: 38 | E28: 9 | F28: 9
B29: =TEXT(Sheet2!F31,"MMM-YYYY") -> Feb-2023 | C29: 42 | D29: 38 | E29: 9 | F29: 9
B30: =TEXT(Sheet2!F32,"MMM-YYYY") -> Mar-2023 | C30: 42 | D30: 38 | E30: 9 | F30: 9
B31: =TEXT(Sheet2!F33,"MMM-YYYY") -> Apr-2023 | C31: 42 | D31: 42 | E31: 9 | F31: 9
B32: =TEXT(Sheet2!F34,"MMM-YYYY") -> May-2023 | C32: 42 | D32: 42 | E32: 9 | F32: 9
B33: =TEXT(Sheet2!F35,"MMM-YYYY") -> Jun-2023 | C33: 42 | D33: 42 | E33: 9 | F33: 9
B34: =TEXT(Sheet2!F36,"MMM-YYYY") -> Jul-2023 | C34: 46 | D34: 46 | E34: 9 | F34: 9
B35: =TEXT(Sheet2!F37,"MMM-YYYY") -> Aug-2023 | C35: 46 | D35: 46 | E35: 9 | F35: 9
B36: =TEXT(Sheet2!F38,"MMM-YYYY") -> Sep-2023 | C36: 46 | D36: 46 | E36: 9 | F36: 9
B37: =TEXT(Sheet2!F39,"MMM-YYYY") -> Oct-2023 | C37: 46 | D37: 46 | E37: 9 | F37: 9
B38: =TEXT(Sheet2!F40,"MMM-YYYY") -> Nov-2023 | C38: 46 | D38: 46 | E38: 9 | F38: 9
B39: =TEXT(Sheet2!F41,"MMM-YYYY") -> Dec-2023 | C39: 46 | D39: 46 | E39: 9 | F39: 9
B40: =TEXT(Sheet2!F42,"MMM-YYYY") -> Jan-2024 | C40: 50 | D40: 50 | E40: 9 | F40: 9
B41: =TEXT(Sheet2!F43,"MMM-YYYY") -> Feb-2024 | C41: 50 | D41: 50 | E41: 9 | F41: 9
B42: =TEXT(Sheet2!F44,"MMM-YYYY") -> Mar-2024 | C42: 50 | D42: 50 | E42: 9 | F42: 9
B43: =TEXT(Sheet2!F45,"MMM-YYYY") -> Apr-2024 | C43: 50 | D43: 50 | E43: 9 | F43: 9
B44: =TEXT(Sheet2!F46,"MMM-YYYY") -> May-2024 | C44: 50 | D44: 50 | E44: 9 | F44: 9
B45: =TEXT(Sheet2!F47,"MMM-YYYY") -> Jun-2024 | C45: 50 | D45: 50 | E45: 9 | F45: 9
B46: =TEXT(Sheet2!F48,"MMM-YYYY") -> Jul-2024 | C46: 53 | D46: 53 | E46: 9 | F46: 9
B47: =TEXT(Sheet2!F49,"MMM-YYYY") -> Aug-2024 | C47: 53 | D47: 53 | E47: 9 | F47: 9
B48: =TEXT(Sheet2!F50,"MMM-YYYY") -> Sep-2024 | C48: 53 | D48: 50 | E48: 9 | F48: 9
B49: =TEXT(Sheet2!F51,"MMM-YYYY") -> Oct-2024
B50: =TEXT(Sheet2!F52,"MMM-YYYY") -> Nov-2024
B51: =TEXT(Sheet2!F53,"MMM-YYYY") -> Dec-2024
B52: =TEXT(Sheet2!F54,"MMM-YYYY") -> Jan-2025
B53: =TEXT(Sheet2!F55,"MMM-YYYY") -> Feb-2025
B54: =TEXT(Sheet2!F56,"MMM-YYYY") -> Mar-2025
B55: =TEXT(Sheet2!F57,"MMM-YYYY") -> Apr-2025
B56: =TEXT(Sheet2!F58,"MMM-YYYY") -> May-2025
B57: =TEXT(Sheet2!F59,"MMM-YYYY") -> Jun-2025
B58: =TEXT(Sheet2!F60,"MMM-YYYY") -> Jul-2025
B59: =TEXT(Sheet2!F61,"MMM-YYYY") -> Aug-2025
B60: =TEXT(Sheet2!F62,"MMM-YYYY") -> Sep-2025
B61: =TEXT(Sheet2!F63,"MMM-YYYY") -> Oct-2025
B62: =TEXT(Sheet2!F64,"MMM-YYYY") -> Nov-2025
B63: =TEXT(Sheet2!F65,"MMM-YYYY") -> Dec-2025
B64: =TEXT(Sheet2!F66,"MMM-YYYY") -> Jan-2026
B65: =TEXT(Sheet2!F67,"MMM-YYYY") -> Feb-2026
B66: =TEXT(Sheet2!F68,"MMM-YYYY") -> Mar-2026
B67: =TEXT(Sheet2!F69,"MMM-YYYY") -> Apr-2026
B68: =TEXT(Sheet2!F70,"MMM-YYYY") -> May-2026
B69: =TEXT(Sheet2!F71,"MMM-YYYY") -> Jun-2026
B70: =TEXT(Sheet2!F72,"MMM-YYYY") -> Jul-2026
B71: =TEXT(Sheet2!F73,"MMM-YYYY") -> Aug-2026
B72: =TEXT(Sheet2!F74,"MMM-YYYY") -> Sep-2026
B73: =TEXT(Sheet2!F75,"MMM-YYYY") -> Oct-2026
B74: =TEXT(Sheet2!F76,"MMM-YYYY") -> Nov-2026
B75: =TEXT(Sheet2!F77,"MMM-YYYY") -> Dec-2026
